{"text_format":"1","workbook":"xlsx","n_sheets":4,"sheets":["Cerere de Finantare","Anexa 1","Anexa 2","Anexa 3"],"not_rendered":{"charts":0,"images":5,"macros":1,"external_links":0,"defined_names":1,"comments":0,"pivot_tables":0},"unopened":[],"bounds":{"document_bytes":16777216,"sheet_cells":100000,"rows_first":2000,"rows_last":500,"rows_between":2000,"halvings":0,"cell_chars":16384,"cell_head_chars":4096},"cells_cut":0,"cells_raw":0,"read":"whole","date_system":"1900"}

{"sheet":"Cerere de Finantare","index":0,"n_rows":667,"n_cols":57,"rows_kept":667,"cut":false,"hidden":false,"merged":[[662,47,662,58],[303,1,304,12],[303,17,304,32],[303,40,304,50],[551,55,551,60],[592,5,592,60],[593,5,593,60],[594,5,594,60],[595,5,595,60],[564,35,564,41],[557,30,557,34],[557,35,557,41],[557,42,557,49],[557,50,557,54],[557,55,557,60],[560,42,560,49],[560,50,560,54],[560,30,560,34],[560,35,560,41],[560,55,560,60],[558,30,558,34],[558,35,558,41],[558,42,558,49],[558,50,558,54],[558,55,558,60],[561,55,561,60],[562,30,562,34],[562,35,562,41],[562,42,562,49],[562,50,562,54],[562,55,562,60],[566,55,566,60],[567,0,567,60],[565,42,565,49],[565,50,565,54],[563,55,563,60],[566,35,566,41],[566,42,566,49],[566,50,566,54],[597,5,597,60],[563,50,563,54],[564,42,564,49],[564,50,564,54],[565,55,565,60],[564,30,564,34],[568,0,568,60],[565,0,565,29],[564,0,564,29],[563,0,563,29],[587,0,587,2],[586,0,586,2],[585,3,585,60],[584,3,584,60],[562,0,562,29],[561,0,561,29],[566,0,566,29],[566,30,566,34],[588,5,588,60],[589,5,589,60],[590,5,590,60],[591,5,591,60],[583,3,583,60],[582,3,582,60],[581,3,581,60],[580,0,580,60],[573,31,573,59],[572,0,572,60],[570,0,570,60],[618,0,618,60],[617,0,617,60],[616,0,616,60],[614,50,614,60],[600,3,600,60],[598,5,598,60],[598,0,598,2],[597,0,597,2],[596,0,596,2],[595,0,595,2],[594,0,594,2],[593,0,593,2],[592,0,592,2],[591,0,591,2],[590,0,590,2],[589,0,589,2],[588,0,588,2],[537,0,537,29],[535,0,535,29],[534,0,534,29],[533,0,533,29],[506,0,506,60],[481,0,481,22],[480,0,480,22],[479,0,479,22],[602,1,602,31],[601,41,601,52],[602,41,602,50],[586,5,586,60],[587,5,587,60],[569,1,569,34],[571,1,571,59],[573,1,573,28],[565,30,565,34],[565,35,565,41],[564,55,564,60],[561,30,561,34],[561,35,561,41],[561,42,561,49],[563,30,563,34],[563,35,563,41],[563,42,563,49],[596,5,596,60],[561,50,561,54],[552,50,552,54],[552,55,552,60],[559,30,559,34],[559,35,559,41],[559,42,559,49],[559,50,559,54],[559,55,559,60],[555,30,555,34],[547,50,547,54],[547,55,547,60],[546,30,546,34],[555,35,555,41],[555,42,555,49],[555,50,555,54],[555,55,555,60],[556,42,556,49],[556,50,556,54],[556,55,556,60],[550,35,550,41],[550,42,550,49],[550,50,550,54],[550,55,550,60],[553,30,553,34],[553,35,553,41],[553,42,553,49],[553,50,553,54],[553,55,553,60],[554,30,554,34],[554,35,554,41],[554,50,554,54],[554,55,554,60],[547,42,547,49],[556,30,556,34],[556,35,556,41],[554,42,554,49],[552,42,552,49],[549,42,549,49],[538,0,538,29],[543,42,543,49],[543,50,543,54],[543,55,543,60],[544,30,544,34],[544,35,544,41],[544,42,544,49],[544,50,544,54],[544,55,544,60],[545,30,545,34],[545,35,545,41],[545,42,545,49],[545,50,545,54],[545,55,545,60],[548,30,548,34],[548,35,548,41],[548,42,548,49],[548,50,548,54],[548,55,548,60],[546,35,546,41],[546,42,546,49],[546,50,546,54],[546,55,546,60],[547,30,547,34],[547,35,547,41],[542,42,542,49],[542,50,542,54],[542,55,542,60],[553,0,553,29],[554,0,554,29],[555,0,555,29],[556,0,556,29],[558,0,558,29],[544,0,544,29],[545,0,545,29],[546,0,546,29],[547,0,547,29],[548,0,548,29],[549,0,549,29],[550,0,550,29],[557,0,557,29],[542,0,542,29],[542,30,542,34],[550,30,550,34],[542,35,542,41],[543,30,543,34],[543,35,543,41],[549,30,549,34],[549,35,549,41],[552,30,552,34],[551,30,551,34],[551,35,551,41],[552,35,552,41],[531,30,531,49],[531,50,531,60],[540,30,540,34],[540,35,540,41],[540,42,540,49],[540,50,540,54],[540,55,540,60],[541,30,541,34],[541,35,541,41],[541,42,541,49],[541,50,541,54],[541,55,541,60],[538,30,538,34],[538,35,538,41],[538,42,538,49],[538,50,538,54],[538,55,538,60],[539,30,539,34],[539,35,539,41],[539,42,539,49],[539,50,539,54],[549,50,549,54],[549,55,549,60],[551,42,551,49],[551,50,551,54],[539,55,539,60],[535,30,535,34],[535,35,535,41],[535,42,535,49],[535,50,535,54],[535,55,535,60],[537,30,537,34],[537,35,537,41],[537,42,537,49],[537,50,537,54],[537,55,537,60],[533,30,533,34],[533,35,533,41],[533,42,533,49],[533,50,533,54],[533,55,533,60],[534,30,534,34],[534,35,534,41],[534,42,534,49],[534,50,534,54],[534,55,534,60],[474,41,474,47],[474,48,474,54],[474,55,474,60],[461,42,461,50],[461,51,461,60],[447,51,447,60],[441,7,441,60],[442,0,442,60],[445,0,445,3],[445,4,445,41],[445,42,445,60],[455,0,455,3],[455,4,455,41],[455,42,455,50],[531,0,531,29],[532,0,532,29],[532,30,532,34],[532,35,532,41],[532,42,532,49],[532,50,532,54],[532,55,532,60],[530,0,530,29],[527,0,528,54],[527,55,527,60],[528,55,528,60],[529,0,529,60],[530,30,530,34],[530,35,530,41],[530,42,530,49],[530,50,530,54],[530,55,530,60],[525,0,526,29],[75,1,79,13],[69,39,69,48],[61,15,61,25],[61,27,61,37],[61,39,61,48],[61,50,61,58],[77,15,77,25],[436,0,436,42],[424,4,424,41],[77,27,77,37],[77,39,77,48],[77,50,77,58],[69,50,69,58],[67,1,71,13],[59,1,63,13],[69,15,69,25],[69,27,69,37],[85,15,85,25],[85,27,85,37],[85,39,85,48],[83,1,87,13],[104,51,104,59],[104,40,104,48],[103,18,103,22],[101,6,101,16],[103,1,103,3],[103,12,103,16],[103,5,103,10],[103,28,103,30],[103,31,103,38],[108,1,108,22],[109,1,109,22],[22,0,22,16],[23,0,23,60],[25,10,25,60],[26,10,26,60],[19,0,19,21],[20,0,20,7],[21,0,21,21],[36,1,36,16],[57,50,57,58],[55,27,55,40],[55,41,55,59],[53,2,53,19],[54,0,54,15],[55,0,55,12],[55,13,55,25],[57,1,57,13],[57,15,57,25],[57,27,57,37],[57,39,57,48],[35,1,35,59],[37,1,40,59],[42,1,51,59],[41,1,41,22],[25,1,25,7],[34,1,34,15],[28,7,28,14],[15,9,15,11],[18,9,18,20],[10,36,10,60],[11,36,12,60],[15,20,15,23],[16,20,16,23],[17,20,17,23],[14,15,14,18],[15,15,15,18],[12,13,13,13],[12,15,13,15],[12,16,13,16],[12,17,13,17],[12,18,13,18],[12,20,13,20],[12,30,13,30],[12,31,13,31],[12,32,13,32],[12,33,13,33],[12,34,13,34],[14,30,14,34],[14,20,14,23],[12,22,13,22],[12,23,13,23],[12,25,13,25],[12,27,13,27],[12,28,13,28],[18,0,18,7],[15,30,15,34],[16,30,16,34],[17,30,17,34],[14,6,14,8],[15,6,15,8],[16,6,16,8],[14,9,14,11],[14,12,14,14],[15,12,15,14],[14,27,14,28],[15,27,15,28],[14,24,14,26],[15,24,15,26],[16,12,16,14],[0,6,0,60],[1,6,1,60],[7,0,7,34],[8,0,8,34],[10,7,10,34],[10,0,10,5],[6,36,6,60],[3,25,3,43],[12,0,12,5],[12,7,13,7],[12,9,13,9],[12,10,13,10],[12,12,13,12],[5,0,6,34],[5,36,5,60],[13,0,13,5],[12,21,13,21],[110,1,110,6],[110,12,110,59],[113,1,113,18],[113,30,113,51],[111,1,111,18],[112,1,112,18],[108,41,108,48],[108,51,108,58],[112,30,112,52],[85,50,85,58],[98,1,98,22],[100,6,100,16],[93,27,93,37],[93,39,93,48],[93,50,93,58],[93,15,93,25],[100,28,100,30],[103,40,103,55],[125,2,125,14],[125,19,125,39],[125,43,125,58],[127,40,127,58],[137,1,137,23],[137,28,137,54],[139,1,139,23],[139,28,139,54],[140,1,140,23],[140,28,140,54],[114,1,114,22],[115,1,115,6],[115,12,115,59],[116,1,116,18],[117,1,117,18],[118,1,118,18],[118,30,118,51],[120,0,120,60],[124,43,124,58],[129,17,129,30],[129,1,129,16],[121,0,121,60],[122,1,122,18],[123,1,124,15],[123,19,123,39],[124,19,124,39],[123,43,123,58],[117,30,117,52],[129,48,129,55],[160,1,160,9],[159,17,159,25],[160,17,160,25],[159,46,159,54],[159,32,159,34],[142,1,142,23],[142,28,142,54],[143,1,143,23],[143,28,143,54],[131,1,131,9],[131,10,131,16],[133,1,133,23],[134,1,134,23],[133,28,133,54],[134,28,134,54],[136,1,136,23],[136,28,136,54],[152,28,152,54],[152,1,152,23],[151,28,151,54],[151,1,151,23],[149,28,149,54],[149,1,149,23],[148,28,148,54],[148,1,148,23],[146,28,146,54],[170,4,170,13],[170,16,170,23],[170,26,170,34],[169,47,171,57],[170,36,170,46],[173,0,173,60],[174,1,174,32],[167,3,168,13],[167,14,168,24],[167,25,168,35],[167,36,168,46],[167,47,167,57],[168,47,168,57],[155,1,155,19],[155,22,155,39],[155,42,155,58],[156,1,156,19],[156,22,156,39],[156,42,156,58],[161,1,161,13],[162,1,162,13],[161,20,161,32],[162,20,162,32],[161,36,161,58],[162,36,162,58],[157,1,157,9],[157,52,157,58],[158,1,158,9],[158,52,158,58],[157,15,157,45],[158,15,158,45],[159,1,159,9],[182,28,183,34],[181,37,181,48],[182,37,183,48],[176,3,176,10],[177,3,177,16],[176,24,176,49],[181,4,181,15],[181,28,181,34],[182,4,182,6],[182,7,182,9],[182,10,182,15],[183,4,183,6],[183,7,183,9],[183,10,183,15],[181,18,181,20],[181,21,181,26],[182,21,183,26],[177,24,177,49],[182,18,183,20],[203,1,203,9],[202,36,202,44],[199,1,199,37],[200,1,200,19],[200,22,200,39],[200,42,200,58],[201,1,201,19],[201,22,201,39],[201,42,201,58],[202,1,202,9],[203,12,203,27],[202,30,202,33],[202,12,202,27],[203,30,203,33],[203,36,203,45],[202,48,202,51],[203,48,203,51],[214,2,214,56],[215,2,215,56],[217,2,217,27],[217,31,217,56],[218,2,218,27],[218,31,218,56],[207,1,207,23],[204,38,204,50],[205,38,205,50],[209,0,209,60],[211,2,211,27],[211,31,211,56],[212,31,212,56],[212,2,212,27],[205,1,205,13],[205,20,205,32],[204,1,204,13],[204,20,204,32],[228,2,228,60],[229,2,229,60],[233,1,234,13],[233,14,233,55],[233,56,234,59],[234,14,234,18],[234,19,234,41],[234,42,234,48],[234,49,234,55],[235,1,235,13],[235,14,235,18],[235,19,235,41],[235,42,235,48],[235,49,235,55],[235,56,237,59],[236,1,236,13],[236,14,236,18],[236,19,236,41],[236,42,236,48],[236,49,236,55],[237,1,237,13],[237,14,237,18],[237,19,237,41],[237,42,237,48],[237,49,237,55],[238,1,238,13],[239,1,239,13],[240,1,240,13],[241,1,241,13],[242,1,242,13],[243,1,243,13],[244,1,244,13],[238,14,238,18],[241,14,241,18],[244,14,244,18],[238,56,238,59],[239,56,239,59],[240,56,242,59],[243,56,245,59],[241,19,241,41],[241,42,241,48],[241,49,241,55],[242,14,242,18],[242,19,242,41],[242,42,242,48],[242,49,242,55],[243,14,243,18],[243,19,243,41],[243,42,243,48],[243,49,243,55],[238,19,238,41],[238,42,238,48],[238,49,238,55],[239,14,239,18],[239,19,239,41],[239,42,239,48],[239,49,239,55],[245,19,245,41],[245,42,245,48],[245,49,245,55],[245,1,245,13],[240,42,240,48],[240,49,240,55],[247,0,297,59],[306,0,306,34],[307,0,307,34],[298,1,298,15],[300,44,300,51],[300,52,300,60],[301,0,301,60],[306,35,306,43],[306,44,306,51],[307,35,307,43],[307,44,307,51],[470,18,470,22],[470,23,470,40],[470,41,470,47],[470,48,470,54],[470,55,470,60],[471,3,471,17],[471,18,471,22],[309,0,309,34],[310,0,310,34],[311,0,311,34],[312,0,312,34],[313,0,313,34],[314,0,314,34],[315,0,315,34],[316,0,316,34],[317,0,317,34],[318,0,318,34],[319,0,319,34],[320,0,320,34],[321,0,321,34],[323,0,323,34],[324,0,324,34],[325,0,325,34],[326,0,326,34],[322,0,322,34],[447,0,447,41],[447,42,447,50],[451,51,451,60],[446,42,446,50],[446,51,446,60],[358,44,358,51],[457,0,457,60],[438,7,438,41],[608,50,608,60],[609,50,609,60],[610,50,610,60],[611,50,611,60],[612,50,612,60],[364,0,364,17],[364,35,364,60],[365,0,365,34],[365,35,365,43],[365,44,365,51],[365,52,365,60],[480,55,480,60],[433,0,433,3],[472,48,472,54],[472,55,472,60],[473,3,473,17],[473,18,473,22],[473,23,473,40],[473,41,473,47],[473,48,473,54],[473,55,473,60],[433,4,433,41],[433,42,433,50],[433,51,433,60],[434,0,434,41],[434,42,434,60],[451,0,451,3],[451,4,451,41],[451,42,451,50],[470,3,470,17],[634,18,634,31],[634,33,634,37],[634,38,634,57],[630,15,630,59],[644,6,644,30],[630,0,630,14],[632,0,632,14],[634,0,634,4],[634,5,634,12],[634,14,634,17],[638,8,638,9],[638,10,638,12],[638,14,638,15],[638,16,638,17],[638,19,638,20],[638,21,638,23],[638,25,638,28],[638,30,638,36],[638,38,638,45],[638,47,638,56],[640,0,640,10],[640,11,640,21],[640,23,640,25],[640,26,640,36],[640,38,640,42],[640,43,640,59],[636,0,636,4],[636,5,636,18],[636,21,636,23],[636,25,636,37],[636,39,636,42],[636,44,636,59],[664,13,664,22],[664,23,664,34],[664,0,664,12],[662,43,662,46],[652,12,652,59],[654,12,654,59],[91,1,95,13],[642,0,642,38],[642,40,642,59],[644,0,644,5],[646,0,646,19],[646,20,646,30],[648,0,648,51],[648,52,648,59],[650,0,650,5],[650,6,650,59],[658,0,658,3],[658,4,658,14],[658,15,658,59],[660,0,660,60],[662,0,662,10],[662,12,662,27],[612,17,612,49],[638,0,638,2],[638,3,638,6],[615,0,615,60],[614,0,614,49],[536,50,536,54],[536,55,536,60],[599,0,599,4],[599,5,599,58],[469,0,469,60],[7,36,8,60],[13,36,21,60],[165,1,165,58],[164,1,164,58],[159,41,159,43],[299,0,299,34],[300,0,300,34],[300,35,300,43],[321,35,321,43],[321,44,321,51],[33,1,33,45],[33,48,33,59],[34,48,34,59],[100,33,100,43],[101,33,101,43],[104,1,104,24],[106,1,107,59],[308,44,308,51],[308,52,308,60],[154,1,154,41],[312,35,312,43],[312,44,312,51],[308,35,308,43],[146,1,146,23],[145,28,145,54],[145,1,145,23],[181,51,181,58],[318,52,318,60],[317,52,317,60],[316,52,316,60],[315,52,315,60],[314,52,314,60],[536,0,536,29],[536,30,536,34],[536,35,536,41],[536,42,536,49],[345,44,345,51],[339,35,339,43],[339,44,339,51],[337,35,337,43],[337,44,337,51],[338,35,338,43],[338,44,338,51],[352,0,352,34],[353,0,353,34],[354,0,354,34],[351,0,351,34],[605,0,605,60],[525,30,525,60],[519,0,519,3],[519,4,519,41],[519,42,519,50],[519,51,519,60],[520,0,520,3],[520,4,520,41],[520,42,520,60],[517,0,517,3],[517,4,517,41],[517,42,517,50],[517,51,517,60],[474,3,474,17],[474,18,474,22],[474,23,474,40],[358,35,358,43],[360,35,360,43],[360,44,360,51],[356,35,356,43],[356,44,356,51],[357,35,357,43],[357,44,357,51],[360,52,360,60],[359,52,359,60],[358,52,358,60],[361,35,361,43],[361,44,361,51],[361,52,361,60],[357,52,357,60],[356,52,356,60],[359,35,359,43],[359,44,359,51],[362,0,362,34],[362,35,362,43],[362,44,362,51],[362,52,362,60],[363,0,363,34],[363,35,363,43],[363,44,363,51],[363,52,363,60],[366,0,366,34],[366,35,366,43],[366,44,366,51],[366,52,366,60],[367,0,367,34],[367,35,367,43],[367,44,367,51],[367,52,367,60],[368,0,368,34],[368,35,368,43],[368,44,368,51],[368,52,368,60],[369,0,369,34],[369,35,369,60],[370,0,370,34],[370,35,370,43],[370,44,370,51],[370,52,370,60],[377,52,377,60],[378,0,378,13],[378,15,378,34],[378,35,378,43],[378,44,378,51],[378,52,378,60],[379,0,379,13],[371,52,371,60],[371,44,371,51],[372,35,372,43],[372,44,372,51],[373,35,373,43],[373,44,373,51],[374,35,374,43],[374,44,374,51],[375,35,375,43],[375,44,375,51],[352,35,352,43],[352,44,352,51],[352,52,352,60],[353,35,353,43],[353,44,353,51],[353,52,353,60],[354,35,354,43],[354,44,354,51],[354,52,354,60],[355,0,355,34],[355,35,355,43],[355,44,355,51],[355,52,355,60],[382,0,382,31],[382,35,382,42],[382,44,382,60],[383,0,383,34],[383,35,383,43],[383,44,383,60],[379,15,379,34],[379,35,379,43],[379,44,379,51],[379,52,379,60],[371,0,371,34],[371,35,371,43],[380,0,380,34],[380,35,380,43],[380,44,380,51],[380,52,380,60],[381,0,381,34],[381,35,381,43],[381,44,381,51],[398,0,398,3],[398,4,398,41],[407,4,407,41],[407,42,407,50],[407,51,407,60],[408,4,408,41],[408,42,408,50],[408,51,408,60],[405,4,405,41],[405,42,405,50],[405,51,405,60],[406,0,406,3],[406,4,406,41],[406,42,406,50],[406,51,406,60],[424,0,424,3],[424,42,424,50],[424,51,424,60],[409,0,409,3],[409,4,409,41],[401,0,401,3],[401,4,401,41],[401,42,401,50],[401,51,401,60],[402,4,402,41],[402,42,402,50],[402,51,402,60],[414,42,414,50],[415,42,415,50],[416,42,416,50],[417,42,417,50],[418,42,418,50],[398,42,398,50],[396,4,396,41],[396,42,396,50],[395,4,395,41],[395,42,395,50],[397,4,397,41],[397,42,397,50],[399,4,399,41],[399,42,399,50],[400,4,400,41],[400,42,400,50],[410,4,410,41],[413,42,413,50],[429,42,429,50],[430,42,430,50],[428,42,428,50],[410,42,410,50],[411,4,411,41],[411,42,411,50],[412,42,412,50],[403,4,403,41],[409,42,409,50],[421,42,421,50],[421,4,421,41],[415,4,415,41],[416,4,416,41],[417,4,417,41],[418,4,418,41],[403,42,403,50],[404,4,404,41],[404,42,404,50],[423,4,423,41],[463,51,463,60],[458,0,458,3],[458,4,458,41],[458,42,458,50],[458,51,458,60],[464,0,464,41],[464,42,464,50],[464,51,464,60],[459,0,459,3],[459,4,459,41],[414,4,414,41],[450,4,450,41],[450,42,450,50],[450,51,450,60],[448,4,448,41],[448,42,448,50],[448,51,448,60],[449,4,449,41],[449,42,449,50],[449,51,449,60],[439,7,439,41],[439,42,440,60],[440,7,440,41],[446,0,446,41]],"merged_total":1478,"flags":["merged_cut"]}
[]
[null,null,null,null,null,null,"Asociația Grupul De Acțiune Locală SIRET - MOLDOVA"]
[null,null,null,null,null,null,null,null,null,null,null,null,null,null,null,null,null,null,null,null,null,null,null,null,null,null,null,null,null,null,null,null,null,null,null,null,null,null,null,null,null,null,null,null,null,null,"Vers.2 Decembrie 2017"]
[null,null,null,null,null,null,null,null,null,null,null,null,null,null,null,null,null,null,null,null,null,null,null,null,null,"SECŢIUNE GENERALĂ"]
[]
["DATE DE ÎNREGISTRARE",null,null,null,null,null,null,null,null,null,null,null,null,null,null,null,null,null,null,null,null,null,null,null,null,null,null,null,null,null,null,null,null,null,null,null,"NUME ŞI PRENUME DIRECTOR GENERAL"]
[null,null,null,null,null,null,null,null,null,null,null,null,null,null,null,null,null,null,null,null,null,null,null,null,null,null,null,null,null,null,null,null,null,null,null,null,"ADJUNCT CRFIR"]
["Se completează de către Agenția pentru Finanțarea Investițiilor Rurale -Centrul"]
["Regional- Programul FEADR 2014-2020"]
[]
["CRFIR",null,null,null,null,null,null,null,null,null,null,null,null,null,null,null,null,null,null,null,null,null,null,null,null,null,null,null,null,null,null,null,null,null,null,null,"Semnătura Director General Adjunct CRFIR"]
[null,null,null,null,null,null,null,null,null,null,null,null,null,null,null,null,null,null,null,null,null,null,null,null,null,null,null,null,null,null,null,null,null,null,null,null,"Ştampila CRFIR"]
["Număr "]
["înregistrare"]
[]
[]
[]
[]
["Data Înregistrării"]
["Numele şi prenumele persoanei care înregistrează"]
["Semnătura:"]
["Data primirii cererii de finanţare la contractare:"]
["Se completează de către solicitant"]
["A PREZENTARE GENERALĂ"]
[null,null,null,null,null,null,null,"          Sub-Măsura 19.2 - Sprijin pentru implementarea acțiunilor în cadrul Strategiei de Dezvoltare Locală"]
[null,"A1 Măsura",null,null,null,null,null,null,null,null,"Măsura 07 - Sprijin pentru minorități"]
[]
[]
[null,"Tip investiție:",null,null,null,null,null,"           Investiții"]
[]
[null,"Domeniul de intervenție:         6B - Încurajarea dezvoltării locale în zonele rurale"]
[]
[]
[null,"Conţinutul cadru al documentaţiei tehnico-economice faza SF/DALI conform:        H.G. 907/2016"]
[null,"A2 Denumire solicitant:"]
[]
[null,"A3 Titlu proiect:"]
[]
[]
[]
[]
[null,"A4 Descrierea succintă a proiectului:"]
[]
[]
[]
[]
[]
[]
[]
[]
[]
[]
[]
[null,null,"A5 Amplasarea proiectului:"]
[]
["Regiunea de dezvoltare:",null,null,null,null,null,null,null,null,null,null,null,null,null,null,null,null,null,null,null,null,null,null,null,null,null,null,"Judeţ:"]
[]
[null,"Obiectivele investiţiei",null,null,null,null,null,null,null,null,null,null,null,null,null,"Judeţ",null,null,null,null,null,null,null,null,null,null,null,"Comună/Oraş",null,null,null,null,null,null,null,null,null,null,null,"Sat/Sector",null,null,null,null,null,null,null,null,null,null,"Sat/Sector"]
[]
[]
[]
[]
[]
[]
[]
[]
[]
[]
[]
[]
[]
[]
[]
[]
[]
[]
[]
[]
[]
[]
[]
[]
[]
[]
[]
[]
[]
[]
[]
[]
[]
[]
[]
[]
[]
[]
[]
[]
[null,"A6 Date despre tipul de proiect şi beneficiar:"]
[]
[null,"A6.1",null,null,null,null,"Investiţie nouă",null,null,null,null,null,null,null,null,null,null,null,null,null,null,null,null,null,null,null,null,null,"A6.2",null,null,null,null,"Comune şi ADI"]
[null,null,null,null,null,null,"Lucrări de intervenție",null,null,null,null,null,null,null,null,null,null,null,null,null,null,null,null,null,null,null,null,null,null,null,null,null,null,"Alt tip de solicitant"]
[]
[null,null,null,null,null,null,null,null,null,null,null,null,null,null,null,null,null,null,null,null,null,null,null,null,null,null,null,null,"A6.3",null,null,"Alocare financiară   ",null,null,null,null,null,null,null,null,"Teritoriul GAL SIRET-MOLDOVA"]
[null,null,null,null,null,null,null,null,null,null,null,null,null,null,null,null,null,null,null,null,null,null,null,null,null,null,null,null,null,null,null,null,null,null,null,null,null,null,null,null," ",null,null,null,null,null,null,null,null,null,null," "]
[]
[]
[]
[]
[null,"A7 Date despre consultant:"]
[null,"Denumire: "]
[null,"Cod Unic de Înregistrare / Codul de"]
[null,"Înregistrare Fiscală",null,null,null,null,null,null,null,null,null,null,null,null,null,null,null,null,null,null,null,null,null,null,null,null,null,null,null,null,"Număr de înregistrare în registrul comerțului"]
[]
[null,"A8 Date despre proiectant:"]
[null,"Denumire: "]
[null,"Cod Unic de Înregistrare / Codul de"]
[null,"Înregistrare Fiscală",null,null,null,null,null,null,null,null,null,null,null,null,null,null,null,null,null,null,null,null,null,null,null,null,null,null,null,null,"Număr de înregistrare în registrul comerțului"]
[]
[]
["B INFORMAŢII PRIVIND SOLICITANTUL"]
["B1 Descrierea solicitantului"]
[null,"B1.1 Informaţii privind solicitantul"]
[null,"Data înființării",null,null,null,null,null,null,null,null,null,null,null,null,null,null,null,null,null,"Cod Unic de Înregistrare și/sau Codul de",null,null,null,null,null,null,null,null,null,null,null,null,null,null,null,null,null,null,null,null,null,null,null,"Statut juridic al solicitantului"]
[null,null,null,null,null,null,null,null,null,null,null,null,null,null,null,null,null,null,null,"Înregistrare Fiscală",null,null,null,null,null,null,null,null,null,null,null,null,null,null,null,null,null,null,null,null,null,null,null,"(Comune, ADI, ONG*)"]
[]
[]
[null,"Număr de înregistrare în registrul comerțului"]
[]
[null,"Codul unic de înregistrare APIA",null,null,null,null,null,null,null,null,null,null,null,null,null,null,null,null,null,null,null,null,null,null,null,null,null,null,null,null,null,null,null,null,null,null,"Anul atribuirii codului"]
[]
[null,"Nr. comune ADI"]
[]
[null,"Denumire comune solicitant",null,null,null,null,null,null,null,null,null,null,null,null,null,null,null,null,null,null,null,null,null,null,null,null,null,null,"Cod Unic de Înregistrare / Cod de Înregistrare Fiscală"]
[]
[]
[null,"Denumire comune solicitant",null,null,null,null,null,null,null,null,null,null,null,null,null,null,null,null,null,null,null,null,null,null,null,null,null,null,"Cod Unic de Înregistrare / Cod de Înregistrare Fiscală"]
[]
[]
[null,"Denumire comune solicitant",null,null,null,null,null,null,null,null,null,null,null,null,null,null,null,null,null,null,null,null,null,null,null,null,null,null,"Cod Unic de Înregistrare / Cod de Înregistrare Fiscală"]
[]
[]
[null,"Denumire comune solicitant",null,null,null,null,null,null,null,null,null,null,null,null,null,null,null,null,null,null,null,null,null,null,null,null,null,null,"Cod Unic de Înregistrare / Cod de Înregistrare Fiscală"]
[]
[]
[null,"Denumire comune solicitant",null,null,null,null,null,null,null,null,null,null,null,null,null,null,null,null,null,null,null,null,null,null,null,null,null,null,"Cod Unic de Înregistrare / Cod de Înregistrare Fiscală"]
[]
[]
[null,"Denumire comune solicitant",null,null,null,null,null,null,null,null,null,null,null,null,null,null,null,null,null,null,null,null,null,null,null,null,null,null,"Cod Unic de Înregistrare / Cod de Înregistrare Fiscală"]
[]
[]
[null,"Denumire comune solicitant"]
[]
[]
[null,"B1.2 Sediul social / Domiciliul stabil al solicitantului / Reşedinţa din România"]
[null,"Judeţ",null,null,null,null,null,null,null,null,null,null,null,null,null,null,null,null,null,null,null,null,"Localitate",null,null,null,null,null,null,null,null,null,null,null,null,null,null,null,null,null,null,null,"Sat"]
[]
[null,"Cod Poştal",null,null,null,null,null,null,null,null,null,null,null,null,null,"Strada",null,null,null,null,null,null,null,null,null,null,null,null,null,null,null,null,null,null,null,null,null,null,null,null,null,null,null,null,null,null,null,null,null,null,null,null,"Nr."]
[]
[null,"Bloc",null,null,null,null,null,null,null,null,null,null,null,null,null,null,null,"Scara"]
[]
[null,"Telefon fix/ mobil",null,null,null,null,null,null,null,null,null,null,null,null,null,null,null,null,null,null,"Fax",null,null,null,null,null,null,null,null,null,null,null,null,null,null,null,"E-mail"]
[]
[]
[null,"B1.3 Numele şi prenumele reprezentantului legal şi funcţia acestuia în cadrul organizaţiei, precum şi"]
[null,"specimenul de semnatură:"]
[]
[null,null,null,"Numele",null,null,null,null,null,null,null,null,null,null,"Prenumele",null,null,null,null,null,null,null,null,null,null,"Funcţia",null,null,null,null,null,null,null,null,null,null,"Reprezentant legal",null,null,null,null,null,null,null,null,null,null,"Specimen de"]
[null,null,null,null,null,null,null,null,null,null,null,null,null,null,null,null,null,null,null,null,null,null,null,null,null,null,null,null,null,null,null,null,null,null,null,null,null,null,null,null,null,null,null,null,null,null,null,"semnătură"]
[]
[null,null,null,null,null,null,null,null,null,null,null,null,null,null,null,null,null,null,null,null,null,null,null,null,null,null,null,null,null,null,null,null,null,null,null,null,"LEGAL"]
[]
[]
["B2 Informaţii referitoare la reprezentantul legal de proiect"]
[null,"B2.1 Date de identitate ale reprezentantului legal de proiect"]
[]
[null,null,null,"Data naşterii",null,null,null,null,null,null,null,null,null,null,null,null,null,null,null,null,null,null,null,null,"Cod numeric personal"]
[]
[]
[]
[]
[null,null,null,null,"Act de identitate",null,null,null,null,null,null,null,null,null,null,null,null,null,"Seria",null,null,"Nr.",null,null,null,null,null,null,"Eliberat la data de",null,null,null,null,null,null,null,null,"de:",null,null,null,null,null,null,null,null,null,null,null,null,null,"Valabil până la:"]
[null,null,null,null,"B.I.",null,null,"C.I.",null,null,"Paşaport"]
[]
[]
[]
[]
[]
[]
[]
[]
[]
[]
[]
[]
[]
[]
[]
[]
[null,"B2.2 Domiciliul stabil al reprezentantului legal de proiect"]
[null,"Judeţ",null,null,null,null,null,null,null,null,null,null,null,null,null,null,null,null,null,null,null,null,"Localitate",null,null,null,null,null,null,null,null,null,null,null,null,null,null,null,null,null,null,null,"Sat"]
[]
[null,"Cod Poştal",null,null,null,null,null,null,null,null,null,null,"Strada",null,null,null,null,null,null,null,null,null,null,null,null,null,null,null,null,null,"Nr.",null,null,null,null,null,"Bloc",null,null,null,null,null,null,null,null,null,null,null,"Scara",null,null,null,null,null,"Ap."]
[]
[null,"Telefon fix",null,null,null,null,null,null,null,null,null,null,null,null,null,null,null,null,null,null,"Telefon mobil",null,null,null,null,null,null,null,null,null,null,null,null,null,null,null,null,null,"Fax"]
[]
[null,"E-mail"]
[]
[]
["B3 Informaţii privind contul bancar pentru proiect schema de autor de stat"]
[]
[null,null,"B3.1 Denumirea Băncii",null,null,null,null,null,null,null,null,null,null,null,null,null,null,null,null,null,null,null,null,null,null,null,null,null,null,null,null,"Denumirea Sucursalei/Filialei"]
[]
[]
[null,null,"B3.2 Adresa Băncii/Sucursalei"]
[]
[]
[null,null,"B3.3 Cod IBAN",null,null,null,null,null,null,null,null,null,null,null,null,null,null,null,null,null,null,null,null,null,null,null,null,null,null,null,null,"B3.4 Titularul contului bancar"]
[]
[]
[]
[]
[]
[]
[]
[]
[]
["C FINANȚĂRI NERAMBURSABILE OBȚINUTE, SAU SOLICITATE ?"]
[null,null,"Dacă au fost obținute finanțări nerambursabile sau au fost solicitate și au fost obținute parțial, se vor detalia prin completarea"]
[null,null,"tabelului de mai jos."]
[]
[null,null,null,null,null,null,null,null,null,null,"DA",null,null,null,null,null,null,null,"NU"]
[]
[null,"DENUMIRE PROGRAM FINANȚARE",null,null,null,null,null,null,null,null,null,null,null,null,"DA",null,null,null,null,null,null,null,null,null,null,null,null,null,null,null,null,null,null,null,null,null,null,null,null,null,null,null,null,null,null,null,null,null,null,null,null,null,null,null,null,null,"NU"]
[null,null,null,null,null,null,null,null,null,null,null,null,null,null,"Număr proiecte",null,null,null,null,"Titlul Proiectui și numărul contractului de finanțare ",null,null,null,null,null,null,null,null,null,null,null,null,null,null,null,null,null,null,null,null,null,null,"Data finalizării\nll/zz/aaaa",null,null,null,null,null,null,"Valoarea\nsprijinului\n(EUR)"]
[null,"Program Naţional*"]
[null,"Program Naţional*"]
[null,"Program Naţional*"]
[null,"SAPARD"]
[null,"FEADR"]
[null,"Alte programe europene*"]
[null,"Alte programe europene*"]
[null,"Alte programe europene*"]
[null,"Alte programe internaționale*"]
[null,"Alte programe internaționale*"]
[null,"Alte programe internaționale*"]
[null,null,null,null,"* se completează de către solicitant cu denumirea programului"]
["REGULI DE COMPLETARE\n\nCâmpurile \"Numele şi prenumele persoanei care înregistrează. Semnătura\", se vor completa după data primirii în format letric a acesteia împreună cu documentele justificative.\nCompletati devizele aferente capitolelor de cheltuieli, defalcat pe cheltuieli eligibile si neeligibile prin completarea tabelelor incluse in acest document, respectiv :\n1. Tabelul \"Deviz financiar_cap3\" cuprinde cheltuielile aferente capitolului 3 - Cheltuieli pentru proiectare si asistenta tehnica, cheltuieli care trebuie sa se regaseasca atat in Bugetul Indicativ (Tabel \"Buget indicativ\" din cererea de finantare, partea specifica), cat si in Devizul General din Studiul de Fezabilitate/Documentatia de avizare a Lucrarilor pentru Interventii.\n2. Tabelul \"Devize obiect\" cuprinde formatul cadru al devizului pe obiect, iar solicitantul va completa atatea devize pe obiect cate obiecte definite de proiectant sunt incluse in proiect. Suma tuturor devizelor pe obiect trebuie sa se regaseasca atat in Bugetul Indicativ (tabelul \"Buget indicativ\" din cererea de finantare, partea specifica), cat si in Devizul General din Studiul de Fezabilitate/Documentatia de avizare a Lucrarilor pentru Interventii In cazul in care proiectul de investitii presupune mai multe devize pe obiect, solicitantul va crea in documentul curent cate o copie a tabelului \"Devize obiect\" pentru fiecare deviz pe obiect si va detalia cheltuielile eligibile si neeligibile pe fiecare in parte.\n3. Tabelul \"cap.2+cap.5\" cuprinde cheltuieli aferente capitolelor 2 si 5 si trebuie sa se regaseasca atat in Bugetul Indicativ (tabel \"Buget indicativ\" din cererea de finantare, partea specifica), cat si Devizul General din Studiul de Fezabilitate/Documentatia de avizare a Lucrarilor pentru Interventii.\n4. Câmpurile \"Prescorare\" şi \"Detaliere criterii de selecţie îndeplinite\" de la sectiunea A6 sunt obligatorii.\n5. Pentru proiectele care vizeaza 2 componente in urmatoarele variante:\n• Modernizare o componenta/extindere componenta complementara\n• Infiintare o componenta/extindere componenta complementara\n• Infiintare o componenta/modernizare componenta complementara\n• Modernizare o componenta/modernizare componenta complementara\nLa punctul A6.1 se vor considera lucrari de interventie .\n6. Pentru proiectele care vizeaza 2 componente, ambele extindere, la punctul A6.1 se va considera investitie noua.\n\nDocumentele (3.1, 3.2, 3.3, 3.4, 5, 7.2, 7.2.1, 11.1, 11.2, 12, 14.1, 14.2, 14.3, 14.4, 15, 16) de pe coloana\nDEPUNERE - Obligatoriu daca proiectul o impune\", din sectiunea E – Lista documentelor anexate - trebuie bifate şi anexate daca proiectul o impune.\nTrebuie bifate si anexate toate documentele (1, 2.1, 6, 7.1, 13) de pe coloana “DEPUNERE -\nObligatoriu pentru toate proiectele” din sectiunea E – Lista documentelor anexate.\n\n"]
[]
[]
[]
[]
[]
[]
[]
[]
[]
[]
[]
[]
[]
[]
[]
[]
[]
[]
[]
[]
[]
[]
[]
[]
[]
[]
[]
[]
[]
[]
[]
[]
[]
[]
[]
[]
[]
[]
[]
[]
[]
[]
[]
[]
[]
[]
[]
[]
[]
[]
[null,"Buget Indicativ - HG 907/2016"]
[]
[]
["ASOCIAȚIA GRUPUL DE ACȚIUNE LOCALĂ SIRET-MOLDOVA"]
[]
[null,"Procentul aferent intensității",null,null,null,null,null,null,null,null,null,null,null,null,null,null,null,"                    Curs EURO",null,null,null,null,null,null,null,null,null,null,null,null,null,null,null,null,null,null,null,null,null,null,"Data întocmirii SF/DALI"]
[]
[]
["Măsura",null,null,null,null,null,null,null,null,null,null,null,null,null,null,null,null,null,null,null,null,null,null,null,null,null,null,null,null,null,null,null,null,null,null,7]
["Denumirea capitolelor de cheltuieli",null,null,null,null,null,null,null,null,null,null,null,null,null,null,null,null,null,null,null,null,null,null,null,null,null,null,null,null,null,null,null,null,null,null,"Cheltuieli eligibile",null,null,null,null,null,null,null,null,"Cheltuieli neeligibile",null,null,null,null,null,null,null,"Total"]
[null,null,null,null,null,null,null,null,null,null,null,null,null,null,null,null,null,null,null,null,null,null,null,null,null,null,null,null,null,null,null,null,null,null,null,"EURO",null,null,null,null,null,null,null,null,"EURO",null,null,null,null,null,null,null,"EURO"]
[1,null,null,null,null,null,null,null,null,null,null,null,null,null,null,null,null,null,null,null,null,null,null,null,null,null,null,null,null,null,null,null,null,null,null,2,null,null,null,null,null,null,null,null,3,null,null,null,null,null,null,null,4]
["Capitolul 1 Cheltuieli pentru obtinerea şi amenajarea terenului - total, din care:",null,null,null,null,null,null,null,null,null,null,null,null,null,null,null,null,null,null,null,null,null,null,null,null,null,null,null,null,null,null,null,null,null,null,{"$f":"SUM(AJ313:AR315)","v":0},null,null,null,null,null,null,null,null,{"$f":"SUM(AS312:AZ315)","v":0},null,null,null,null,null,null,null,{"$f":"SUM(AJ311,AS311)","v":0}]
["1.1 Obţinerea terenului",null,null,null,null,null,null,null,null,null,null,null,null,null,null,null,null,null,null,null,null,null,null,null,null,null,null,null,null,null,null,null,null,null,null,2542,null,null,null,null,null,null,null,null,null,null,null,null,null,null,null,null,{"$f":"SUM(AS312)","v":0}]
["1.2 Amenajarea terenului",null,null,null,null,null,null,null,null,null,null,null,null,null,null,null,null,null,null,null,null,null,null,null,null,null,null,null,null,null,null,null,null,null,null,null,null,null,null,null,null,null,null,null,null,null,null,null,null,null,null,null,{"$f":"SUM(AJ313:AZ313)","v":0}]
["1.3 Amenajari pentru protecţia mediului şi aducerea terenului la starea iniţială",null,null,null,null,null,null,null,null,null,null,null,null,null,null,null,null,null,null,null,null,null,null,null,null,null,null,null,null,null,null,null,null,null,null,null,null,null,null,null,null,null,null,null,null,null,null,null,null,null,null,null,{"$f":"SUM(AJ314:AZ314)","v":0}]
["1.4 Cheltuieli pentru relocarea/protecţia utilităţilor",null,null,null,null,null,null,null,null,null,null,null,null,null,null,null,null,null,null,null,null,null,null,null,null,null,null,null,null,null,null,null,null,null,null,null,null,null,null,null,null,null,null,null,null,null,null,null,null,null,null,null,0]
["Capitolul 2 Cheltuieli pentru asigurarea utilităţilor necesare obiectivului de investiții",null,null,null,null,null,null,null,null,null,null,null,null,null,null,null,null,null,null,null,null,null,null,null,null,null,null,null,null,null,null,null,null,null,null,null,null,null,null,null,null,null,null,null,null,null,null,null,null,null,null,null,{"$f":"SUM(AJ316:AZ316)","v":0}]
["Capitolul 3 Cheltuieli pentru proiectare şi asistenţă tehnică - total, din care:",null,null,null,null,null,null,null,null,null,null,null,null,null,null,null,null,null,null,null,null,null,null,null,null,null,null,null,null,null,null,null,null,null,null,{"$f":"SUM(A318,AJ322,AJ323,AJ324,AJ325,AJ333,AJ336)","v":0},null,null,null,null,null,null,null,null,{"$f":"SUM(AS318,AS325,AS322,AS323,AS324,AS332,AS333,AS336)","v":0},null,null,null,null,null,null,null,{"$f":"SUM(AJ317,AS317)","v":0}]
["3.1 Studii",null,null,null,null,null,null,null,null,null,null,null,null,null,null,null,null,null,null,null,null,null,null,null,null,null,null,null,null,null,null,null,null,null,null,{"$f":"SUM(AJ319:AR321)","v":0},null,null,null,null,null,null,null,null,{"$f":"SUM(AS319:AZ321)","v":0},null,null,null,null,null,null,null,{"$f":"SUM(AJ318,AS318)","v":0}]
["      3.1.1 Studii de teren",null,null,null,null,null,null,null,null,null,null,null,null,null,null,null,null,null,null,null,null,null,null,null,null,null,null,null,null,null,null,null,null,null,null,null,null,null,null,null,null,null,null,null,null,null,null,null,null,null,null,null,{"$f":"SUM(AJ319,AS319)","v":0}]
["      3.1.2 Raport privind impactul asupra mediului",null,null,null,null,null,null,null,null,null,null,null,null,null,null,null,null,null,null,null,null,null,null,null,null,null,null,null,null,null,null,null,null,null,null,null,null,null,null,null,null,null,null,null,null,null,null,null,null,null,null,null,0]
["      3.1.3 Alte studii specifice",null,null,null,null,null,null,null,null,null,null,null,null,null,null,null,null,null,null,null,null,null,null,null,null,null,null,null,null,null,null,null,null,null,null,null,null,null,null,null,null,null,null,null,null,null,null,null,null,null,null,null,0]
["3.2 Documentații-suport și cheltuieli pentru obţinerea de avize, acorduri şi autorizaţii",null,null,null,null,null,null,null,null,null,null,null,null,null,null,null,null,null,null,null,null,null,null,null,null,null,null,null,null,null,null,null,null,null,null,null,null,null,null,null,null,null,null,null,null,null,null,null,null,null,null,null,0]
["3.3 Expertizare tehnică",null,null,null,null,null,null,null,null,null,null,null,null,null,null,null,null,null,null,null,null,null,null,null,null,null,null,null,null,null,null,null,null,null,null,null,null,null,null,null,null,null,null,null,null,null,null,null,null,null,null,null,0]
["3.4 Certificarea performanței energetice și auditul energetic al clădirilor",null,null,null,null,null,null,null,null,null,null,null,null,null,null,null,null,null,null,null,null,null,null,null,null,null,null,null,null,null,null,null,null,null,null,null,null,null,null,null,null,null,null,null,null,null,null,null,null,null,null,null,0]
["3.5 Proiectare",null,null,null,null,null,null,null,null,null,null,null,null,null,null,null,null,null,null,null,null,null,null,null,null,null,null,null,null,null,null,null,null,null,null,{"$f":"SUM(AJ326:AR331)","v":0},null,null,null,null,null,null,null,null,{"$f":"SUM(AS326:AZ331)","v":0},null,null,null,null,null,null,null,0]
["      3.5.1 Temă de proiectare",null,null,null,null,null,null,null,null,null,null,null,null,null,null,null,null,null,null,null,null,null,null,null,null,null,null,null,null,null,null,null,null,null,null,null,null,null,null,null,null,null,null,null,null,null,null,null,null,null,null,null,0]
["      3.5.2 Studiu de prefezabilitate",null,null,null,null,null,null,null,null,null,null,null,null,null,null,null,null,null,null,null,null,null,null,null,null,null,null,null,null,null,null,null,null,null,null,null,null,null,null,null,null,null,null,null,null,null,null,null,null,null,null,null,0]
["      3.5.3 Studiu de fezabilitate/documentație de avizare a lucrărilor de intervenții și deviz general",null,null,null,null,null,null,null,null,null,null,null,null,null,null,null,null,null,null,null,null,null,null,null,null,null,null,null,null,null,null,null,null,null,null,null,null,null,null,null,null,null,null,null,null,null,null,null,null,null,null,null,0]
["      3.5.4 Documentațiile tehnice necesare în vederea obținerii avizelor/acordurilor/autorizațiilor",null,null,null,null,null,null,null,null,null,null,null,null,null,null,null,null,null,null,null,null,null,null,null,null,null,null,null,null,null,null,null,null,null,null,null,null,null,null,null,null,null,null,null,null,null,null,null,null,null,null,null,0]
["      3.5.5 Verificarea tehnică de calitate a proiectului tehnic și a detaliilor de execuție",null,null,null,null,null,null,null,null,null,null,null,null,null,null,null,null,null,null,null,null,null,null,null,null,null,null,null,null,null,null,null,null,null,null,null,null,null,null,null,null,null,null,null,null,null,null,null,null,null,null,null,0]
["      3.5.6 Proiect tehnic și detalii de execuție",null,null,null,null,null,null,null,null,null,null,null,null,null,null,null,null,null,null,null,null,null,null,null,null,null,null,null,null,null,null,null,null,null,null,null,null,null,null,null,null,null,null,null,null,null,null,null,null,null,null,null,0]
["3.6 Organizarea procedurilor de achiziţie",null,null,null,null,null,null,null,null,null,null,null,null,null,null,null,null,null,null,null,null,null,null,null,null,null,null,null,null,null,null,null,null,null,null,null,null,null,null,null,null,null,null,null,null,null,null,null,null,null,null,null,0]
["3.7 Consultanță",null,null,null,null,null,null,null,null,null,null,null,null,null,null,null,null,null,null,null,null,null,null,null,null,null,null,null,null,null,null,null,null,null,null,{"$f":"SUM(AJ334)","v":0},null,null,null,null,null,null,null,null,{"$f":"SUM(AS334:AS335)","v":0},null,null,null,null,null,null,null,0]
["      3.7.1 Managementul de proiect pentru obiectivul de investiții",null,null,null,null,null,null,null,null,null,null,null,null,null,null,null,null,null,null,null,null,null,null,null,null,null,null,null,null,null,null,null,null,null,null,null,null,null,null,null,null,null,null,null,null,null,null,null,null,null,null,null,0]
["      3.7.2 Auditul financiar",null,null,null,null,null,null,null,null,null,null,null,null,null,null,null,null,null,null,null,null,null,null,null,null,null,null,null,null,null,null,null,null,null,null,null,null,null,null,null,null,null,null,null,null,null,null,null,null,null,null,null,0]
["3.8 Asistența tehnică",null,null,null,null,null,null,null,null,null,null,null,null,null,null,null,null,null,null,null,null,null,null,null,null,null,null,null,null,null,null,null,null,null,null,{"$f":"SUM(AJ340,AJ337)","v":0},null,null,null,null,null,null,null,null,{"$f":"SUM(AS340,AS337)","v":0},null,null,null,null,null,null,null,0]
["      3.8.1 Asistență tehnică din partea proiectantului",null,null,null,null,null,null,null,null,null,null,null,null,null,null,null,null,null,null,null,null,null,null,null,null,null,null,null,null,null,null,null,null,null,null,{"$f":"SUM(AJ338:AR339)","v":0},null,null,null,null,null,null,null,null,{"$f":"SUM(AS338:AZ339)","v":0},null,null,null,null,null,null,null,0]
["            3.8.1.1 pe perioada de execuție a lucrărilor",null,null,null,null,null,null,null,null,null,null,null,null,null,null,null,null,null,null,null,null,null,null,null,null,null,null,null,null,null,null,null,null,null,null,null,null,null,null,null,null,null,null,null,null,null,null,null,null,null,null,null,0]
["            3.8.1.2 pentru participarea proiectantului la fazele incluse în programul de control al lucrărilor de execuție, avizat de către Inspectoratul de Stat în Construcții",null,null,null,null,null,null,null,null,null,null,null,null,null,null,null,null,null,null,null,null,null,null,null,null,null,null,null,null,null,null,null,null,null,null,null,null,null,null,null,null,null,null,null,null,null,null,null,null,null,null,null,0]
["      3.8.2 Dirigenție de șantier",null,null,null,null,null,null,null,null,null,null,null,null,null,null,null,null,null,null,null,null,null,null,null,null,null,null,null,null,null,null,null,null,null,null,null,null,null,null,null,null,null,null,null,null,null,null,null,null,null,null,null,0]
["Verificare încadrare cheltuieli capitolul 3",null,null,null,null,null,null,null,null,null,null,null,null,null,null,null,null,null,null,null,null,null,null,null,null,null,null,null,null,null,null,null,{"$f":"AJ311+AJ316+AJ342","v":0},{"$f":"IF(AG341=0,0,AI341)","v":0},{"$f":"AJ317*100/AG341","v":{"$error":"#DIV/0!"}},{"$f":"IF(AJ342=0,IF(AH341<=5,\"cheltuieli capitol 3 se incadreaza in limita de 5%\",\"cheltuieli capitol 3 nu se incadreaza in limita de 5%\"),IF(AH341<=10,\"cheltuieli capitol 3 se incadreaza in limita de 10%\",\"cheltuieli capitol 3 nu se incadreaza in limita de 10%\"))","v":"cheltuieli capitol 3 se incadreaza in limita de 5%"}]
["Capitolul 4 Cheltuieli pentru investiţia de bază - total, din care:",null,null,null,null,null,null,null,null,null,null,null,null,null,null,null,null,null,null,null,null,null,null,null,null,null,null,null,null,null,null,null,null,null,null,{"$f":"SUM(AJ343:AR348)","v":0},null,null,null,null,null,null,null,null,{"$f":"SUM(AS343:AZ348)","v":0},null,null,null,null,null,null,null,{"$f":"SUM(AJ342,AS342)","v":0}]
["4.1 Construcţii şi instalaţii",null,null,null,null,null,null,null,null,null,null,null,null,null,null,null,null,null,null,null,null,null,null,null,null,null,null,null,null,null,null,null,null,null,null,null,null,null,null,null,null,null,null,null,null,null,null,null,null,null,null,null,0]
["4.2 Montaj utilaje, echipamente tehnologice şi funcţionale",null,null,null,null,null,null,null,null,null,null,null,null,null,null,null,null,null,null,null,null,null,null,null,null,null,null,null,null,null,null,null,null,null,null,null,null,null,null,null,null,null,null,null,null,null,null,null,null,null,null,null,0]
["4.3 Utilaje, echipamente tehnologice şi funcţionale care necesită montaj",null,null,null,null,null,null,null,null,null,null,null,null,null,null,null,null,null,null,null,null,null,null,null,null,null,null,null,null,null,null,null,null,null,null,null,null,null,null,null,null,null,null,null,null,null,null,null,null,null,null,null,0]
["4.4 Utilaje, echipamente tehnologice şi funcţionale care nu necesită montaj şi echipamente de transport",null,null,null,null,null,null,null,null,null,null,null,null,null,null,null,null,null,null,null,null,null,null,null,null,null,null,null,null,null,null,null,null,null,null,null,null,null,null,null,null,null,null,null,null,null,null,null,null,null,null,null,0]
["4.5 Dotări",null,null,null,null,null,null,null,null,null,null,null,null,null,null,null,null,null,null,null,null,null,null,null,null,null,null,null,null,null,null,null,null,null,null,null,null,null,null,null,null,null,null,null,null,null,null,null,null,null,null,null,0]
["4.6 Active necorporale",null,null,null,null,null,null,null,null,null,null,null,null,null,null,null,null,null,null,null,null,null,null,null,null,null,null,null,null,null,null,null,null,null,null,null,null,null,null,null,null,null,null,null,null,null,null,null,null,null,null,null,0]
["Capitolul 5 Alte cheltuieli - total, din care:",null,null,null,null,null,null,null,null,null,null,null,null,null,null,null,null,null,null,null,null,null,null,null,null,null,null,null,null,null,null,null,null,null,null,{"$f":"SUM(AJ350,AJ353,AJ360)","v":0},null,null,null,null,null,null,null,null,{"$f":"SUM(AS350,AS353,AS359,AS360)","v":0},null,null,null,null,null,null,null,0]
["5.1 Organizare de şantier",null,null,null,null,null,null,null,null,null,null,null,null,null,null,null,null,null,null,null,null,null,null,null,null,null,null,null,null,null,null,null,null,null,null,{"$f":"SUM(AJ351:AR352)","v":0},null,null,null,null,null,null,null,null,{"$f":"SUM(AS351:AZ352)","v":0},null,null,null,null,null,null,null,0]
["      5.1.1 Lucrări de construcţii şi instalaţii aferente organizării de şantier",null,null,null,null,null,null,null,null,null,null,null,null,null,null,null,null,null,null,null,null,null,null,null,null,null,null,null,null,null,null,null,null,null,null,null,null,null,null,null,null,null,null,null,null,null,null,null,null,null,null,null,0]
["      5.1.2 Cheltuieli conexe orgănizării şantierului",null,null,null,null,null,null,null,null,null,null,null,null,null,null,null,null,null,null,null,null,null,null,null,null,null,null,null,null,null,null,null,null,null,null,null,null,null,null,null,null,null,null,null,null,null,null,null,null,null,null,null,0]
["5.2 Comisioane, cote, taxe, costul creditului",null,null,null,null,null,null,null,null,null,null,null,null,null,null,null,null,null,null,null,null,null,null,null,null,null,null,null,null,null,null,null,null,null,null,{"$f":"SUM(AJ358,AJ355:AR356)","v":0},null,null,null,null,null,null,null,null,{"$f":"SUM(AS354:AZ358)","v":0},null,null,null,null,null,null,null,0]
["      5.2.1 Comisioanele și dobânzile aferente creditului băncii finanțatoare",null,null,null,null,null,null,null,null,null,null,null,null,null,null,null,null,null,null,null,null,null,null,null,null,null,null,null,null,null,null,null,null,null,null,null,null,null,null,null,null,null,null,null,null,null,null,null,null,null,null,null,0]
["      5.2.2 Cota aferentă ISC pentru controlul calității lucrărilor de construcții",null,null,null,null,null,null,null,null,null,null,null,null,null,null,null,null,null,null,null,null,null,null,null,null,null,null,null,null,null,null,null,null,null,null,null,null,null,null,null,null,null,null,null,null,null,null,null,null,null,null,null,0]
["      5.2.3 Cota aferentă ISC pentru controlul statului în amenajarea teritoriului, urbanism și pentru autorizarea lucrărilor de construcţii",null,null,null,null,null,null,null,null,null,null,null,null,null,null,null,null,null,null,null,null,null,null,null,null,null,null,null,null,null,null,null,null,null,null,null,null,null,null,null,null,null,null,null,null,null,null,null,null,null,null,null,0]
["      5.2.4 Cota aferentă Casei Sociale a Constructorilor - CSC",null,null,null,null,null,null,null,null,null,null,null,null,null,null,null,null,null,null,null,null,null,null,null,null,null,null,null,null,null,null,null,null,null,null,null,null,null,null,null,null,null,null,null,null,null,null,null,null,null,null,null,0]
["      5.2.5 Taxe pentru acorduri, avize conforme și autorizașia de construire/desființare",null,null,null,null,null,null,null,null,null,null,null,null,null,null,null,null,null,null,null,null,null,null,null,null,null,null,null,null,null,null,null,null,null,null,null,null,null,null,null,null,null,null,null,null,null,null,null,null,null,null,null,0]
["5.3 Cheltuieli diverse şi neprevăzute",null,null,null,null,null,null,null,null,null,null,null,null,null,null,null,null,null,null,null,null,null,null,null,null,null,null,null,null,null,null,null,null,null,null,null,null,null,null,null,null,null,null,null,null,null,null,null,null,null,null,null,0]
["5.4 Cheltuieli pentru informare și publicitate",null,null,null,null,null,null,null,null,null,null,null,null,null,null,null,null,null,null,null,null,null,null,null,null,null,null,null,null,null,null,null,null,null,null,null,null,null,null,null,null,null,null,null,null,null,null,null,null,null,null,null,0]
["Capitolul 6 Cheltuieli pentru darea în exploatare - total, din care:",null,null,null,null,null,null,null,null,null,null,null,null,null,null,null,null,null,null,null,null,null,null,null,null,null,null,null,null,null,null,null,null,null,null,{"$f":"SUM(AJ363)","v":0},null,null,null,null,null,null,null,null,{"$f":"SUM(AS362:AS363)","v":0},null,null,null,null,null,null,null,0]
["6.1 Pregătirea personalului de exploatare",null,null,null,null,null,null,null,null,null,null,null,null,null,null,null,null,null,null,null,null,null,null,null,null,null,null,null,null,null,null,null,null,null,null,null,null,null,null,null,null,null,null,null,null,null,null,null,null,null,null,null,0]
["6.2 Probe tehnologice şi teste",null,null,null,null,null,null,null,null,null,null,null,null,null,null,null,null,null,null,null,null,null,null,null,null,null,null,null,null,null,null,null,null,null,null,null,null,null,null,null,null,null,null,null,null,null,null,null,null,null,null,null,0]
["TOTAL GENERAL",null,null,null,null,null,null,null,null,null,null,null,null,null,null,null,null,null,null,null,null,null,null,null,null,null,null,null,null,null,null,null,null,null,null,{"$f":"SUM(AJ311,AJ316,AJ317,AJ342,AJ349,AJ361)","v":0},null,null,null,null,null,null,null,null,{"$f":"SUM(AS311,AS316,AS317,AS342,AS349,AS361)","v":0},null,null,null,null,null,null,null,{"$f":"SUM(AJ364,AS364)","v":0}]
["Verificare actualizare",null,null,null,null,null,null,null,null,null,null,null,null,null,null,null,null,null,null,null,null,null,null,null,null,null,null,null,null,null,null,{"$f":"AJ366*100/AJ364","v":{"$error":"#DIV/0!"}},null,null,{"$f":"IF(AJ364=0,0,AF365)","v":0},{"$f":"IF(AI365<=5,\"actualizare mai mică de 5% din valoarea eligibila\",\"actualizare mai mare de 5% din valoarea eligibila\")","v":"actualizare mai mică de 5% din valoarea eligibila"}]
["ACTUALIZARE Cheltuieli Eligibile (max 5%)"]
["TOTAL GENERAL CU ACTUALIZARE",null,null,null,null,null,null,null,null,null,null,null,null,null,null,null,null,null,null,null,null,null,null,null,null,null,null,null,null,null,null,null,null,null,null,{"$f":"SUM(AJ364,AJ366)","v":0},null,null,null,null,null,null,null,null,{"$f":"SUM(AS364)","v":0},null,null,null,null,null,null,null,{"$f":"SUM(AJ367:AS367)","v":0}]
["Valoare TVA",null,null,null,null,null,null,null,null,null,null,null,null,null,null,null,null,null,null,null,null,null,null,null,null,null,null,null,null,null,null,null,null,null,null,null,null,null,null,null,null,null,null,null,null,null,null,null,null,null,null,null,{"$f":"SUM(AJ368:AS368)","v":0}]
[]
["TOTAL GENERAL inclusiv TVA",null,null,null,null,null,null,null,null,null,null,null,null,null,null,null,null,null,null,null,null,null,null,null,null,null,null,null,null,null,null,null,null,null,null,{"$f":"SUM(BA367,BA368)","v":0}]
[null,null,null,null,null,null,null,null,null,null,null,null,null,null,null,null,null,null,null,null,null,null,null,null,null,null,null,null,null,null,null,null,null,null,null,"LEI",null,null,null,null,null,null,null,null,"EURO"]
["VALOARE TOTALĂ",null,null,null,null,null,null,null,null,null,null,null,null,null,null,null,null,null,null,null,null,null,null,null,null,null,null,null,null,null,null,null,null,null,null,{"$f":"SUM(AJ373:AR374)","v":0},null,null,null,null,null,null,null,null,{"$f":"SUM(AS373:AS374)","v":0}]
["VALOARE ELIGIBILĂ",null,null,null,null,null,null,null,null,null,null,null,null,null,null,null,null,null,null,null,null,null,null,null,null,null,null,null,null,null,null,null,null,null,null,{"$f":"SUM(AJ373*W305)","v":0},null,null,null,null,null,null,null,null,{"$f":"SUM(AJ367,AJ368)","v":0}]
["VALOARE NEELIGIBILĂ",null,null,null,null,null,null,null,null,null,null,null,null,null,null,null,null,null,null,null,null,null,null,null,null,null,null,null,null,null,null,null,null,null,null,{"$f":"SUM(AJ374*W305)","v":0},null,null,null,null,null,null,null,null,{"$f":"SUM(AS367,AS368)","v":0}]
[]
["Plan Financiar",null,null,null,null,null,null,null,null,null,null,null,null,null,null,null,null,null,null,null,null,null,null,null,null,null,null,null,null,null,null,null,null,null,null,"Cheltuieli eligibile EURO",null,null,null,null,null,null,null,null,"Cheltuieli neeligibile EURO",null,null,null,null,null,null,null,"Total"]
["Ajutor public nerambursabil (contribuţie UE şi cofinanţare naţională)",null,null,null,null,null,null,null,null,null,null,null,null,null,null,null,null,null,null,null,null,null,null,null,null,null,null,null,null,null,null,null,null,null,null,null,null,null,null,null,null,null,null,null,null,null,null,null,null,null,null,null,{"$f":"SUM(AJ377:AZ377)","v":0}]
["Cofinantare privata, din care:",null,null,null,null,null,null,null,null,null,null,null,null,null,null,null,null,null,null,null,null,null,null,null,null,null,null,null,null,null,null,null,null,null,null,{"$f":"SUM(AJ379:AJ380)","v":0},null,null,null,null,null,null,null,null,{"$f":"SUM(AS379:AS380)","v":0},null,null,null,null,null,null,null,{"$f":"SUM(AJ378:AZ378)","v":0}]
[null,null,null,null,null,null,null,null,null,null,null,null,null,null,null,"- autofinantare",null,null,null,null,null,null,null,null,null,null,null,null,null,null,null,null,null,null,null,null,null,null,null,null,null,null,null,null,null,null,null,null,null,null,null,null,{"$f":"SUM(AJ379:AZ379)","v":0}]
[null,null,null,null,null,null,null,null,null,null,null,null,null,null,null,"- imprumuturi",null,null,null,null,null,null,null,null,null,null,null,null,null,null,null,null,null,null,null,null,null,null,null,null,null,null,null,null,null,null,null,null,null,null,null,null,0]
["Buget local",null,null,null,null,null,null,null,null,null,null,null,null,null,null,null,null,null,null,null,null,null,null,null,null,null,null,null,null,null,null,null,null,null,null,null,null,null,null,null,null,null,null,null,null,null,null,null,null,null,null,null,0]
["TOTAL PROIECT",null,null,null,null,null,null,null,null,null,null,null,null,null,null,null,null,null,null,null,null,null,null,null,null,null,null,null,null,null,null,null,null,null,null,{"$f":"SUM(AJ377,AJ378,AJ381)","v":0},null,null,null,null,null,null,null,null,{"$f":"SUM(AS378,AS381)","v":0},null,null,null,null,null,null,null,0]
["Procent contribuţie publică",null,null,null,null,null,null,null,null,null,null,null,null,null,null,null,null,null,null,null,null,null,null,null,null,null,null,null,null,null,null,null,null,{"$f":"AJ377*100/AJ382","v":{"$error":"#DIV/0!"}},{"$f":"IF(AJ382=0,0,AH383)","v":0},{"$f":"SUM(AJ383*AS372*W305)","v":0},null,null,null,null,null,null,null,"%"]
["Avans solicitat"]
["Procent avans solicitat ca procent din ajutorul public nerambursabil",null,null,null,null,null,null,null,null,null,null,null,null,null,null,null,null,null,null,null,null,null,null,null,null,null,null,null,null,null,null,null,null,null,{"$f":"(AJ384*100/AJ377)","v":{"$error":"#DIV/0!"}},{"$f":"IF(AJ377=0,0,AI385)","v":0},null,null,null,null,null,null,null,null,{"$f":"IF(AJ385<=50,\"Suma avans mai mica de 50% din ajutorul public\",\"Suma avans mai mare de 50% din ajutorul public\")","v":"Suma avans mai mica de 50% din ajutorul public"}]
[]
[]
[]
[]
[null,null,null,null,null,null,null,null,null,null,null,null,null,null,null,null,null,null,null,null,null,null,null,null,null,null,null,null,null,null,null,null,null,null,null,null,null,null,null,null,null,null,"Anexa A1\n"]
[]
[null,null,null,null,null,null,null,"Deviz financiar- Capitolul 3 - Cheltuieli pentru proiectare şi asistenţa tehnică - EURO"]
[]
[]
[]
["Nr.crt",null,null,null,"Specificaţie",null,null,null,null,null,null,null,null,null,null,null,null,null,null,null,null,null,null,null,null,null,null,null,null,null,null,null,null,null,null,null,null,null,null,null,null,null,"Valoare eligibilă",null,null,null,null,null,null,null,null,"Valoare\nneeligibilă"]
["3.1",null,null,null,"Cheltuieli pentru studii - total din care:",null,null,null,null,null,null,null,null,null,null,null,null,null,null,null,null,null,null,null,null,null,null,null,null,null,null,null,null,null,null,null,null,null,null,null,null,null,{"$f":"SUM(AQ398:AQ400)","v":0},null,null,null,null,null,null,null,null,{"$f":"SUM(AZ398:BI400)","v":0}]
[null,null,null,null,"3.1.1 Studii de teren: studii geotehnice, geologice, hidrologice, hidrogeotehnice,\nfotogrammetrice, topografica şi de stabilitate ale terenului pe care se amplasează obiectivul de investiţie "]
[null,null,null,null,"3.1.2 Raport privind impactul asupra mediului"]
[null,null,null,null,"3.1.3 Studii de specialitate necesare în funcţie de specificul investiţiei"]
["3.2",null,null,null,"Documentaţii-suport şi cheltuieli pentru obţinerea de avize, acorduri şi\nautorizaţii",null,null,null,null,null,null,null,null,null,null,null,null,null,null,null,null,null,null,null,null,null,null,null,null,null,null,null,null,null,null,null,null,null,null,null,null,null,{"$f":"SUM(AQ402,AQ403,AQ404,AQ407:AY410)","v":0},null,null,null,null,null,null,null,null,{"$f":"SUM(AZ402:AZ410)","v":0}]
[null,null,null,null,"1. obţinerea/prelungirea valabilităţii ceritificatului de urbanism"]
[null,null,null,null,"2. obţinerea/prelungirea valabilităţii autorizaţiei de construire/desfiinţare"]
[null,null,null,null,"3. obţinerea avizelor şi acordurilor pentru racorduri şi branşamente la reţele publice\nde alimentare cu apă, canalizare, alimentare cu gaze, alimentare cu agent termic,\nenergie electrică, telefonie"]
[null,null,null,null,"4. obţinerea certificatului de nomenclatură stradală şi adresă"]
[null,null,null,null,"5. întocmirea documentaţiei, obţinerea numărului cadastral provizoriu şi\nînregistrarea terenului în cartea funciară"]
[null,null,null,null,"6. obţinerea actului administrativ al autorităţii competente pentru protecţia mediului"]
[null,null,null,null,"7. obţinerea avizului de protecţie civilă"]
[null,null,null,null,"8. avizul de specialitate în cazul obiectivelor de patrimoniu"]
[null,null,null,null,"9. alte avize, acorduri şi autorizaţii"]
["3.3",null,null,null,"Cheltuieli pentru expertizarea tehnică a construcţiilor existente, a structurilor\nşi/sau, după caz, a proiectelor tehnice, inclusiv întocmirea de către expertul\ntehnic a raportului de expertiză tehnică"]
["3.4",null,null,null,"Cheltuieli pentru certificarea performanţei energetice şi auditul energetic al clădirilor"]
["3.5",null,null,null,"Cheltuieli pentru proiectare",null,null,null,null,null,null,null,null,null,null,null,null,null,null,null,null,null,null,null,null,null,null,null,null,null,null,null,null,null,null,null,null,null,null,null,null,null,{"$f":"SUM(AQ414:AQ419)","v":0},null,null,null,null,null,null,null,null,{"$f":"SUM(AZ414:AZ419)","v":0}]
[null,null,null,null,"3.5.1 Temă de proiectare"]
[null,null,null,null,"3.5.2 Studiu de prefezabilitate"]
[null,null,null,null,"3.5.3 Studiu de fezabilitate/documentaţie de avizare a lucrărilor de intervenţii şi deviz general"]
[null,null,null,null,"3.5.4 Documentaţiile tehnice necesare în vederea obţinerii avizelor/acordurilor/autorizaţiilor"]
[null,null,null,null,"3.5.5 Verificarea tehnică de calitate a proiectului tehnic şi a detaliilor de execuţie"]
[null,null,null,null,"3.5.6 Proiect tehnic şi detalii de execuţie"]
["3.6",null,null,null,"Cheltuieli aferente organizării şi derulării procedurilor de achiziţii publice",null,null,null,null,null,null,null,null,null,null,null,null,null,null,null,null,null,null,null,null,null,null,null,null,null,null,null,null,null,null,null,null,null,null,null,null,null,null,null,null,null,null,null,null,null,null,{"$f":"SUM(AZ421:AZ424)","v":0}]
[null,null,null,null,"1. Cheltuieli aferente întocmirii documentaţiei de atribuire şi multiplicării acesteia (exclusiv cele cumpărate de ofertanţi)"]
[null,null,null,null,"2. Cheltuieli cu onorariile, transportul, cazarea şi diurna membrilor desemnaţi în comisiile de evaluare"]
[null,null,null,null,"3. Anunţuri de intenţie, de participare şi de atribuire a contractelor, corespondenţă\nprin poştă, fax, poştă electronică în legătură cu procedurile de achiziţie publică"]
[null,null,null,null,"4. Cheltuieli aferente organizării şi derulării procedurilor de achiziţii publice"]
["3.7",null,null,null,"Cheltuieli pentru consultanţă",null,null,null,null,null,null,null,null,null,null,null,null,null,null,null,null,null,null,null,null,null,null,null,null,null,null,null,null,null,null,null,null,null,null,null,null,null,{"$f":"SUM(AQ426)","v":0},null,null,null,null,null,null,null,null,{"$f":"SUM(AZ426,AZ427)","v":0}]
[null,null,null,null,"3.7.1 Managementul de proiect pentru obiectivul de investiţii"]
[null,null,null,null,"3.7.2 Auditul financiar"]
["3.8",null,null,null,"Cheltuieli pentru asistenţă tehnică",null,null,null,null,null,null,null,null,null,null,null,null,null,null,null,null,null,null,null,null,null,null,null,null,null,null,null,null,null,null,null,null,null,null,null,null,null,{"$f":"SUM(AQ429,AQ432)","v":0},null,null,null,null,null,null,null,null,{"$f":"SUM(AZ429,AZ432)","v":0}]
[null,null,null,null,"3.8.1. Asistenţă tehnică din partea proiectantului",null,null,null,null,null,null,null,null,null,null,null,null,null,null,null,null,null,null,null,null,null,null,null,null,null,null,null,null,null,null,null,null,null,null,null,null,null,{"$f":"SUM(AQ430,AQ431)","v":0},null,null,null,null,null,null,null,null,{"$f":"SUM(AZ430,AZ431)","v":0}]
[null,null,null,null,"     1.1. pe perioada de execuţie a lucrărilor"]
[null,null,null,null,"     1.2. pentru participarea proiectantului la fazele incluse în programul de control al\nlucrărilor de execuţie, avizat de către Inspectoratul de Stat în Construcţii"]
[null,null,null,null,"3.8.2 Dirigenţie de şantier, asigurată de personal tehnic de specialitate, autorizat"]
[null,null,null,null,"Total valoare fără TVA",null,null,null,null,null,null,null,null,null,null,null,null,null,null,null,null,null,null,null,null,null,null,null,null,null,null,null,null,null,null,null,null,null,null,null,null,null,{"$f":"SUM(AQ397,AQ401,AQ411,AQ412,AQ413,AQ420,AQ425,AQ428)","v":0},null,null,null,null,null,null,null,null,{"$f":"SUM(AZ397,AZ401,AZ411,AZ412,AZ413,AZ420,AZ425,AZ428)","v":0}]
[null,null,null,null,"Valoare TVA (aferentă cheltuielilor eligibile şi neeligibile)"]
["TOTAL DEVIZ FINANCIAR 1 (inclusiv TVA)",null,null,null,null,null,null,null,null,null,null,null,null,null,null,null,null,null,null,null,null,null,null,null,null,null,null,null,null,null,null,null,null,null,null,null,null,null,null,null,null,null,{"$f":"SUM(AQ433,AQ434,AZ433,AZ434)","v":0}]
[]
[]
[]
[]
[null,null,null,null,null,null,null,null,null,null,null,null,null,null,null,null,null,null,null,null,null,null,null,null,null,null,null,null,null,null,null,null,null,null,null,null,null,null,null,null,null,null,"Anexa A2\n"]
[]
[null,null,null,null,null,null,null,"DEVIZ PE OBIECT *"]
[]
[]
[]
["Nr. crt.",null,null,null,"Denumire",null,null,null,null,null,null,null,null,null,null,null,null,null,null,null,null,null,null,null,null,null,null,null,null,null,null,null,null,null,null,null,null,null,null,null,null,null,"Valoarea pe categorii de lucrări, fară TVA - EURO"]
["Cap. 4 + Cheltuieli pentru investiţia de bază",null,null,null,null,null,null,null,null,null,null,null,null,null,null,null,null,null,null,null,null,null,null,null,null,null,null,null,null,null,null,null,null,null,null,null,null,null,null,null,null,null,"Valoare eligibilă",null,null,null,null,null,null,null,null,"Valoare\nneeligibilă"]
["   I - LUCRĂRI DE CONSTRUCŢII ŞI INSTALAŢII"]
["4.1",null,null,null,"Construcţii şi instalaţii"]
[null,null,null,null,"4.1.1 Terasamente, sistematizare pe verticală şi amenajări exterioare"]
[null,null,null,null,"4.1.2 Rezistenţă"]
[null,null,null,null,"4.1.3 Arhitectură"]
[null,null,null,null,"4.1.4 Instalaţii"]
[null,null,null,null,"TOTAL I ( fără TVA)",null,null,null,null,null,null,null,null,null,null,null,null,null,null,null,null,null,null,null,null,null,null,null,null,null,null,null,null,null,null,null,null,null,null,null,null,null,{"$f":"SUM(AQ450:AY453)","v":0},null,null,null,null,null,null,null,null,{"$f":"SUM(AZ450:BI453)","v":0}]
["   II - MONTAJ"]
["4.2",null,null,null,"Montaj utilaje şi echipamente tehnologice"]
[null,null,null,null,"TOTAL II ( fără TVA)",null,null,null,null,null,null,null,null,null,null,null,null,null,null,null,null,null,null,null,null,null,null,null,null,null,null,null,null,null,null,null,null,null,null,null,null,null,{"$f":"SUM(AQ456)","v":0},null,null,null,null,null,null,null,null,{"$f":"SUM(AZ456)","v":0}]
["   III - PROCURARE"]
["4.3",null,null,null,"Utilaje, echipamente tehnologice şi funcţionale care necesită montaj"]
["4.4",null,null,null,"Utilaje, echipamente tehnologice şi funcţionale care nu necesită\nmontaj şi echipamente de transport"]
["4.5",null,null,null,"Dotări"]
["4.6",null,null,null,"Active necorporale"]
[null,null,null,null,"TOTAL III ( fără TVA)",null,null,null,null,null,null,null,null,null,null,null,null,null,null,null,null,null,null,null,null,null,null,null,null,null,null,null,null,null,null,null,null,null,null,null,null,null,{"$f":"SUM(AQ459:AY462)","v":0},null,null,null,null,null,null,null,null,{"$f":"SUM(AZ459:BI462)","v":0}]
["TOTAL ( TOTAL I + TOTAL II +TOTAL III) fără TVA",null,null,null,null,null,null,null,null,null,null,null,null,null,null,null,null,null,null,null,null,null,null,null,null,null,null,null,null,null,null,null,null,null,null,null,null,null,null,null,null,null,{"$f":"SUM(AQ454,AQ457,AQ463)","v":0},null,null,null,null,null,null,null,null,{"$f":"SUM(AZ454,AZ457,AZ463)","v":0}]
["TVA aferent cheltuielilor eligibile şi neeligibile"]
["TOTAL DEVIZ PE OBIECT (inclusiv TVA)",null,null,null,null,null,null,null,null,null,null,null,null,null,null,null,null,null,null,null,null,null,null,null,null,null,null,null,null,null,null,null,null,null,null,null,null,null,null,null,null,null,{"$f":"SUM(AQ464,AQ465,AZ464,AZ465)","v":0}]
[]
[]
[]
["Situaţia achiziţiilor publice efectuate până la depunerea Cererii de finanţare cu respectarea condiţiilor de eligibilitate a cheltuielilor prevăzute în fişa Măsurii 7"]
["Nr. crt.",null,null,"Obiectul contractului",null,null,null,null,null,null,null,null,null,null,null,null,null,null,"Valoarea reală                         (Lei)",null,null,null,null,"Procedura aplicată",null,null,null,null,null,null,null,null,null,null,null,null,null,null,null,null,null,"Data începerii procedurii (zz/ll/aaaa)",null,null,null,null,null,null,"Data finalizarii procedurii (zz/ll/aaaa)",null,null,null,null,null,null,"Stadiul procedurii"]
[1,null,null,"Servicii de consultanta"]
[2,null,null,"Elaborarea Studiului de Fezabilitate"]
[3]
[4]
[5]
[6]
[7]
["Declar pe proprie raspundere ca informatiile din tabelul de mai sus sunt corecte si ca la atribuirea contractelor de servicii mentionate au fost respectate prevederile legislatiei nationale in vigoare privind procedura de achizitie publica"]
[]
["Reprezentant legal, Nume/Prenume"]
["Semnatura si ştampila"]
[]
[]
[null,null,null,null,null,null,null,null,null,null,null,null,null,null,null,null,null,null,null,null,null,null,null,null,null,null,null,null,null,null,null,null,null,null,null,null,null,null,null,null,null,null,"Anexa A3\n"]
[]
[]
[]
["Deviz capitolul 2- Cheltuieli pentru asigurarea utilităţilor necesare obiectivului - EURO"]
[]
["Nr.crt",null,null,null,"Specificaţie",null,null,null,null,null,null,null,null,null,null,null,null,null,null,null,null,null,null,null,null,null,null,null,null,null,null,null,null,null,null,null,null,null,null,null,null,null,"Valoare eligibilă",null,null,null,null,null,null,null,null,"Valoare\nneeligibilă"]
[1,null,null,null,"Alimentare cu apă"]
[2,null,null,null,"Canalizare"]
[3,null,null,null,"Alimentare cu gaze naturale"]
[4,null,null,null,"Alimentare cu agent termic"]
[5,null,null,null,"Alimentare cu energie electrică"]
[6,null,null,null,"Telecomunicaţii (telefonie, radio-tv,etc)"]
[7,null,null,null,"Drumuri de acces"]
[8,null,null,null,"Căi ferate industriale"]
[9,null,null,null,"Alte utilități"]
[null,null,null,null,"TOTAL DEVIZ CAPITOLUL 2",null,null,null,null,null,null,null,null,null,null,null,null,null,null,null,null,null,null,null,null,null,null,null,null,null,null,null,null,null,null,null,null,null,null,null,null,null,{"$f":"SUM(AQ492:AY500)","v":0},null,null,null,null,null,null,null,null,{"$f":"SUM(AZ492:BI500)","v":0}]
[null,null,null,null,"Valoare TVA aferentă cheltuielilor eligibile şi neeligibile"]
["TOTAL DEVIZ CAPITOLUL 2 (inclusiv TVA)",null,null,null,null,null,null,null,null,null,null,null,null,null,null,null,null,null,null,null,null,null,null,null,null,null,null,null,null,null,null,null,null,null,null,null,null,null,null,null,null,null,{"$f":"SUM(AQ501,AQ502,AZ501,AZ502)","v":0}]
[]
[" Deviz capitolul 5 - Alte cheltuieli - EURO"]
["Nr.crt",null,null,null,"Specificaţie",null,null,null,null,null,null,null,null,null,null,null,null,null,null,null,null,null,null,null,null,null,null,null,null,null,null,null,null,null,null,null,null,null,null,null,null,null,"Valoare eligibilă",null,null,null,null,null,null,null,null,"Valoare\nneeligibilă"]
[]
["5.1 ",null,null,null,"Organizare de şantier",null,null,null,null,null,null,null,null,null,null,null,null,null,null,null,null,null,null,null,null,null,null,null,null,null,null,null,null,null,null,null,null,null,null,null,null,null,{"$f":"SUM(AQ509:AY510)","v":0},null,null,null,null,null,null,null,null,{"$f":"SUM(AZ509:BI510)","v":0}]
[null,null,null,null,"5.1.1 Lucrări de construcţii şi instalaţii aferente organizării de şantier"]
[null,null,null,null,"5.1.2 Cheltuieli conexe organizării de şantier"]
["5.2",null,null,null,"Comisioane, cote, taxe, costul creditului",null,null,null,null,null,null,null,null,null,null,null,null,null,null,null,null,null,null,null,null,null,null,null,null,null,null,null,null,null,null,null,null,null,null,null,null,null,{"$f":"SUM(AQ513:AY514,AQ516)","v":0},null,null,null,null,null,null,null,null,{"$f":"SUM(AZ512:BI516)","v":0}]
[null,null,null,null,"5.2.1. Comisioanele şi dobânzile aferente creditului băncii finanţatoare",null,null,null,null,null,null,null,null,null,null,null,null,null,null,null,null,null,null,null,null,null,null,null,null,null,null,null,null,null,null,null,null,null,null,null,null,null,1]
[null,null,null,null,"5.2.2. Cota aferentă ISC pentru controlul calităţii lucrărilor de\nconstrucţii"]
[null,null,null,null,"5.2.3. Cota aferentă ISC pentru controlul statului în amenajarea teritoriului, urbanism şi pentru autorizarea lucrărilor de construcţii"]
[null,null,null,null,"5.2.4. Cota aferentă Casei Sociale a Constructorilor - CSC"]
[null,null,null,null,"5.2.5. Taxe pentru acorduri, avize conforme şi autorizaţia de construire/desfiinţare"]
["5.3",null,null,null," Cheltuieli diverse si neprevazute"]
["5.3",null,null,null,"Cheltuieli pentru informare și publicitate"]
[null,null,null,null,"TOTAL DEVIZ CAPITOLUL 5",null,null,null,null,null,null,null,null,null,null,null,null,null,null,null,null,null,null,null,null,null,null,null,null,null,null,null,null,null,null,null,null,null,null,null,null,null,{"$f":"SUM(AQ508,AQ511,AQ518)","v":0},null,null,null,null,null,null,null,null,{"$f":"SUM(AZ508,AZ511,AZ517,AZ518)","v":0}]
[null,null,null,null,"VALOARE TVA aferentă cheltuielilor eligibile şi neeligibile"]
[null,null,null,null,"TOTAL DEVIZ CAPITOLUL 5 ( inclusiv TVA)",null,null,null,null,null,null,null,null,null,null,null,null,null,null,null,null,null,null,null,null,null,null,null,null,null,null,null,null,null,null,null,null,null,null,null,null,null,{"$f":"SUM(AQ519,AQ520,AZ519,AZ520)","v":0}]
[]
[]
[]
[]
[null,null,null,null,null,null,null,null,null,null,null,null,null,null,null,null,null,null,null,null,null,null,null,null,null,null,null,null,null,null,"SECȚIUNE SPECIFICĂ MĂSURA 7"]
[]
["         E. LISTA DOCUMENTELOR ANEXATE PROIECTELOR AFERENTE MĂSURII 7",null,null,null,null,null,null,null,null,null,null,null,null,null,null,null,null,null,null,null,null,null,null,null,null,null,null,null,null,null,null,null,null,null,null,null,null,null,null,null,null,null,null,null,null,null,null,null,null,null,null,null,null,null,null,"OPIS"]
[null,null,null,null,null,null,null,null,null,null,null,null,null,null,null,null,null,null,null,null,null,null,null,null,null,null,null,null,null,null,null,null,null,null,null,null,null,null,null,null,null,null,null,null,null,null,null,null,null,null,null,null,null,null,null,"documente"]
["Documentele se vor anexa cererii de finanțare în ordinea de mai jos:"]
["Lista documente",null,null,null,null,null,null,null,null,null,null,null,null,null,null,null,null,null,null,null,null,null,null,null,null,null,null,null,null,null,"Obligatoriu pentru toate proiectele",null,null,null,null,"Obligatoriu, dacă proiectul impune",null,null,null,null,null,null,"PAGINA de   la - până la",null,null,null,null,null,null,null,"Obligatoriu pentru toate proiectele",null,null,null,null,"Obligatoriu, dacă proiectul impune"]
["ETAPA:",null,null,null,null,null,null,null,null,null,null,null,null,null,null,null,null,null,null,null,null,null,null,null,null,null,null,null,null,null,"DEPUNERE",null,null,null,null,null,null,null,null,null,null,null,null,null,null,null,null,null,null,null,"CONTRACTARE"]
["1. Studiu de Fezabilitate/Memoriu justificativ/Documentaţie de Avizare pentru Lucrări de\nIntervenţii, întocmite, avizate și verificate în condițiile legii și însoțite de\ntoate studiile, expertizele, avizele și acordurile specifice fiecărui tip de\ninvestiție, conform reglementărilor legale în vigoare."]
["2. Certificat de Urbanism, completat și eliberat conform reglementărilor\nlegale în vigoare și aflate în termenul de valabilitate la data depunerii cererii de finanțare."]
["3.1 Pentru comune și ADI\nInventarul bunurilor ce aparţin domeniului public al comunei/comunelor, întocmit conform legislaţiei în vigoare privind proprietatea publică şi regimul juridic al acesteia, atestat prin Hotărâre a Guvernului şi publicat în Monitorul Oficial al României.\nşi"]
["3.2 Hotărârea Consiliului Local privind aprobarea modificărilor şi / sau\ncompletărilor la inventar în sensul includerii în domeniul public sau\ndetalierii poziției globale existente sau clasificării unor drumuri\nneclasificate, cu respectarea prevederilor Art. 115 alin (7) din Legea nr.\n215/ 2001, republicată, cu modificările şi completările ulterioare, a\nadministraţiei publice locale, adică să fi fost supusă controlului de legalitate al Prefectului, în condiţiile legii\nși/sau"]
["3.3 Avizul administratorului terenului aparţinând domeniului public, altul\ndecat cel administrat de primarie (dacă este cazul)"]
["3.4 Pentru ONG-uri\nDocumente doveditoare de către ONG-uri privind dreptul de\nproprietate /administrare pe o perioadă de 10 ani, asupra bunurilor imobile\nla care se vor efectua lucrări, conform cererii de finanţare;"]
["4. Document care să ateste că a depus documentaţia la ANPM:"]
["4.1 Clasarea notificării\nsau"]
["4.2 Decizia etapei de încadrare, ca document final (prin care se precizează că proiectul nu se supune evaluării impactului asupra mediului şi nici evaluării adecvate)\nsau"]
["4.3 Acord de mediu în cazul în care se impune evaluarea impactului\npreconizat asupra mediului\nsau"]
["4.4 Acord de mediu în cazul evaluării impactului asupra mediului și de\nevaluare adecvată (dacă este cazul)."]
["4.5 Aviz Natura 2000 pentru proiectele care impun doar evaluare\nadecvată."]
["5.Hotărârea Consiliului Local / Hotaririle Consiliului Local în cazul ADI/\nHotararea Adunarii Generala în cazul ONG pentru implementarea\nproiectului, cu referire la următoarelor puncte (obligatorii):\n• necesitatea, oportunitatea și potenţialul economic al investiţiei;\n• lucrările vor fi prevăzute în bugetul/bugetele local/e pentru perioada de realizare a investiţiei;\n• angajamentul de a suporta cheltuielile de mentenanta a investiţiei pe o perioadă de minimum 5 ani de la data efectuării ultimei plăţi;\n• numărul de locuitori deserviţi de proiect / utilizatori direcţi (pentru\ngrădiniţe, licee / şcoli profesionale, structuri tip „after-school”, creşe);\n• caracteristici tehnice (lungimi, arii, volume, capacităţi etc.);\n• agenţii economici deserviţi direct de investiţie (dacă este cazul, număr\nși denumire);\n• nominalizarea reprezentantului legal al comunei/ADI/ONG pentru\nrelaţia cu AFIR în derularea proiectului.\n• angajamentul de asigurare a cofinantarii, daca este cazul.\n• angajamentul că proiectul nu va fi generator de venit in cazul\nproiectelor care vizează infrastructura educațională (gradinițe)/socială"]
["6.1 Certificatul de înregistrare fiscală"]
["6.2 Încheiere privind înscrierea în Registrul Asociațiilor și Fundațiilor,\nrămasă definitivă / Certificat de înregistrare în\nRegistrul Asociațiilor și Fundațiilor"]
["6.2.1 Actul de înfiinţare şi statutul ADI/ONG"]
["7. Certificate care să ateste lipsa datoriilor fiscale restante și graficul de\nreeșalonare a datoriilor către bugetul consolidat (daca este cazul)."]
["8. Certificatul de cazier judiciar"]
["9. Document emis de bancă/trezorerie care să conțină datele de identificare ale băncii/trezoreriei și ale contului aferent proiectului pentru care se solicită finanțare din PNDR (denumirea, adresa băncii/ trezoreriei, codul IBAN al contului în care se derulează operațiunile cu AFIR)."]
["10.1 Notificare privind conformitatea proiectului cu condiţiile de igienă şi\nsănătate publică\nsau"]
["10.2 Notificare că investiţia nu face obiectul evaluării condiţiilor de igienă şi sănătate publică, dacă este cazul."]
["11. Lista agentilor economici deserviţi de proiect, care va conţine\ndenumirea, adresa, activitatea desfăşurată, codul proiectului cu finanțare europeană și valoarea totală a investiției, pentru fiecare investiție accesibilizată şi a institutiilor de sociale și de interes public deservite direct de proiect."]
["12. Raport asupra utilizării programelor de finanţare nerambursabilă\nîntocmit de solicitant (va cuprinde obiective, tip de investiție, lista\ncheltuielilor eligibile, costurile și stadiul proiectului, perioada derulării\ncontractului), pentru solicitantii care au mai beneficiat de finanțare\nnerambursabilă începând cu anul 2002, pentru aceleași tipuri de investiții."]
["13. Notificare, care sa certifice conformitatea proiectului cu legislatia în\nvigoare pentru domeniul sanitar veterinar și care prin realizarea investiției în conformitate cu proiectul verificat de DSVSA județeană, construcția va fi în concordanță cu legislația în vigoare pentru domeniul sanitar veterinar și pentru siguranța alimentelor, dacă este cazul."]
["14. Extrasul din strategie, care confirma daca investiția este în corelare cu\norice strategie de dezvoltare națională / regional / județeană / locală\naprobată, corespunzătoare domeniului de investiții precum și copia\nhotărârii de aprobare a strategiei."]
["15. Aviz de conformitate a proiectului cu obiectivele Strategiei Integrate de Dezvoltare Durabilă pentru Delta Dunării emis de Asociația Dezvoltare Intercomunitară Delta Dunării."]
["16. Proiectul tehnic va respecta prevederile legale în vigoare privind\nconţinutului-cadru al documentaţiei tehnico-economice aferente investiţiilor\npublice, precum şi a structurii şi metodologiei de elaborare a devizului\ngeneral pentru obiective de investiţii şi lucrări de intervenţii."]
["17. Copia Documentului de identitate al reprezentantului legal al\nbeneficiarului."]
["18. Dovada achitarii integrale a datoriei față de AFIR, inclusiv dobânzile și\nmajorările de întârziere, dacă este cazul"]
["19. Alte documente justificative (Se vor specifica dupa caz)"]
[]
[]
[]
[]
[]
["F. DECLARAŢIE PE PROPRIA RĂSPUNDERE A SOLICITANTULUI"]
["Prin această declaraţie solicitantul"]
[]
["care solicită asistență financiară nerambursabilă prin programul FEADR pentru proiectul intitulat"]
[]
["prin reprezentant legal"]
[]
["cunoscând prevederile legii penale cu privire la falsul în declarații:"]
[null,null,null,"1. Declar că proiectul propus asistenței financiare nerambursabile FEADR nu beneficiază de altă finanțare din\nprograme de finanțare nerambursabilă."]
["De asemenea mă angajez ca în cazul în care proiectul va fi selectat pentru finanțare FEADR, nu voi depune acest\nproiect la nici un alt program de finanțare nerambursabilă la care proiectul poate fi în întregime sau parțial eligibil\npentru asistență."]
[null,null,null,"2. Declar că îndeplinesc condițiile de eligibilitate prevăzute în fișa sub-măsurii și Ghidul Solicitantului și mă\nangajez să le respect pe perioada de valabilitate a contractului de finanțare și monitorizare a investiției, inclusiv\ncriteriile de selecție pentru care proiectul a fost punctat."]
[null,null,null,"3. Declar că toate informațiile din prezenta cerere de finanțare și din documentele anexate sunt corecte și mă\nangajez să respect condițiile cerute în reglementările referitoare la prezentul program și pe cele legate de\nproiectul anexat și să furnizez periodic, la cerere, documentele justificative necesare."]
[null,null,null,"4. Declar pe propria răspundere că orice modificări aduse dreptului de proprietate sau de folosință vor fi\nnotificate AFIR în termen de trei zile de la data producerii lor."]
["  5. Declar că eu și organizația mea (UAT sau ONG) nu ne aflăm într-unul din următoarele cazuri:"]
[null,null,null,"Acuzat din cauza unei greșeli privind conduita profesională având ca soluție finală res judicata (împotriva căreia nici un apel nu este posibil)"]
[null,null,null,"Vinovat de grave deficiențe de conduită profesională dovedite prin orice mijloace pe care Agenția le poate justifica."]
[null,null,null,"Vinovat de faptul că nu am prezentat informaţiile cerute de autoritatea contractantă ca o condiţie de participare la licitaţie sau contractare"]
[null,null,null,"Încălcarea prevederilor contractuale prin care nu mi-am îndeplinit obligațiile contractuale în legătură cu un alt contract cu Agenția sau alte contracte finanțate din fonduri comunitare."]
[null,null,null,"Încercarea de a obține informații confidențiale sau de influențare a Agenției în timpul procesului de evaluare a proiectului și nu voi face presiuni la adresa evaluatorului."]
["6.",null,null,null,null,"Declar că organizația pe care o reprezint ARE datorii către instituții de credit și/sau instituții financiare\nnebancare. În acest sens, atașez Graficul de rambursare a datoriilor și document de la bancă pentru\ncertificarea respectării graficului de rambursare."]
[null,null,null,null,null,"Declar că organizația pe care o reprezint NU are datorii către instituții de credit şi/sau instituții financiare\nnebancare."]
["7.",null,null,null,null,"Declar pe propria răspundere ca în cazul în care nu respect oricare din punctele prevăzute în această\ndeclarație proiectul să devină neeligibil în baza criteriului \"Eligibilitatea solicitantului\" sau contractul să fie\nreziliat."]
["8.",null,null,null,null,"Declar pe propria răspundere că:"]
[null,null,null,null,null,"Nu sunt înregistrat în scopuri TVA și că mă angajez să notific Agenției orice modificare a situatiei privind înregistrarea ca plătitor de TVA, în maximum 10 (zece) zile de la data înregistrării în scopuri TVA."]
[null,null,null,null,null,"Sunt înregistrat în scopuri de TVA (certificat de înregistrare fiscală în scopuri de TVA)."]
["9.",null,null,null,null,"Declar pe propria răspundere că nu am înscrieri care privesc sancțiuni economico-financiare în cazierul\njudiciar pe care mă oblig să îl depun la încheierea contractului de finanțare."]
["10.",null,null,null,null,"Declar pe propria raspundere că nu am fapte înscrise în cazierul fiscal."]
["11.",null,null,null,null,"Declar pe propria răspundere că toate cheltuielile neeligibile vor fi suportate de solicitant și că acestea vor fi realizate până la finalizarea proiectului."]
["12.",null,null,null,null,"Ma angajez ca in termenul precizat in Ghidul Solicitantului, de la data primirii \"Notificarii benficiarului privind selectarea cererii de finantare si semnarea contractului de finantare\", sa asigur si sa prezint documentele obligatorii mentionate in Ghidul solicitantului pentru contractarea proiectului."]
["13.",null,null,null,null,"Declar pe proprie raspundere ca voi achita integral datoria fata de AFIR, inclusiv dobanzile si majorarile de\nintarziere pana la semnarea contractului de finantare (pentru solicitantii inregistrati in registrul debitorilor AFIR atat pentru programul SAPARD cat si pentru FEADR)."]
["14.",null,null,null,null,"Declar pe propria răspundere ca nu sunt în insolventă sau incapacitate de plată."]
[15,null,null,null,null,"Declar pe propria răspundere că în conformitate cu termenul menţionat în notificarea AFIR privind selecţia cererii de finanţare, voi obţine şi depune, înainte de semnarea contractului de finanţare, documentul emis de ANPM menţionat în secţiunea E punctul 4 a cererii de finanţare."]
[16,null,null,null,null,"Accept publicarea pe site-ul AFIR a datelor mele cu respectarea legislaţiei naţionale şi europene privind transparenţa."]
[]
["Semnătura reprezentant legal şi ştampila",null,null,null,null,null,null,null,null,null,null,null,null,null,null,null,null,null,null,null,null,null,null,null,null,null,null,null,null,null,null,null,null,null,null,null,null,null,null,null,null," Data:"]
[]
[]
[]
["Anexa INDICATORI DE MONITORIZARE"]
["Sub-Masura 19.2 - SPRIJIN PENTRU IMPLEMENTAREA ACȚIUNILOR ÎN CADRUL STRATEGIEI DE DEZVOLTARE LOCALĂ\nMăsura 7 -Sprijin pentru minorități"]
["cu obiective ce se încadrează în prevederile art.20 din Reg. (U.E.) nr. 1305/2013"]
["1. Tipul de sprijin",null,null,null,null,null,null,null,null,null,null,null,null,null,null,null,null,"a) Investiții de renovare, modernizarea şi dotarea aferentă a așezămintelor culturale, inclusiv prima achiziție de cărți, materiale audio, achiziționarea de costume tradiționale şi instrumente muzicale tradiționale în vederea promovării patrimoniului cultural imaterial ca parte componenta a proiectului."]
[null,null,null,null,null,null,null,null,null,null,null,null,null,null,null,null,null,"b) Renovarea clădirilor publice şi amenajări de parcări, piețe, spatii pentru organizarea de târguri etc"]
[null,null,null,null,null,null,null,null,null,null,null,null,null,null,null,null,null,"c) Înființarea, amenajarea spațiilor publice de recreere pentru populația rurală (parcuri, spatii de joacă pentru copii, terenuri de sport, piste de biciclete);"]
[null,null,null,null,null,null,null,null,null,null,null,null,null,null,null,null,null,"d) Achiziționarea de utilaje și echipamente pentru serviciile publice pentru deservirea comunităților de rromi sau altor minorități;"]
[null,null,null,null,null,null,null,null,null,null,null,null,null,null,null,null,null,"e) Modernizarea (inclusiv dotarea) grădinițelor, numai a celor din afara incintei școlilor din mediul rural, inclusiv demolarea, în cazul în care expertiza tehnică o recomandă în comunitățile de rromi sau altor minorități;"]
[null,null,null,null,null,null,null,null,null,null,null,null,null,null,null,null,null,"f) Modernizarea (inclusiv dotarea) creșelor precum și a infrastructurii de tip after-school, numai a celor din afara incintei școlilor din mediul rural, în comunitățile de rromi sau altor minorități;"]
["2. Număr locuitori deserviţi"]
[]
["Indic. nr. 1 - se va bifa doar o singura categorie/ categoria majoritară"]
["Indic. nr. 2 - se va completa numărul locuitorilor deserviţi"]
["Pentru indicatorii de tip numeric care nu fac obiectul investitiei sa va completa valoarea zero."]
[]
[]
["Codul unic de inregistrare APIA"]
["In cazul in care nu aveti un cod unic de inregistrare APIA, completati acest formular."]
[]
["FORMULAR"]
[]
["Programului naţional de dezvoltare rurală 2014 - 2020"]
[]
["Denumire solicitant:"]
[]
["Categorie Solicitant:"]
[]
["Sediul / Adresa"]
[]
["Ţara",null,null,null,null,"România",null,null,null,null,null,null,null,null,"Judeţul",null,null,null,null,null,null,null,null,null,null,null,null,null,null,null,null,null,null,"oraşul"]
[]
["comuna",null,null,null,null,null,null,null,null,null,null,null,null,null,null,null,null,null,null,null,null,"satul",null,null,null,null,null,null,null,null,null,null,null,null,null,null,null,null,null,"strada"]
[]
["nr.",null,null,null,null,null,null,null,"bl.",null,null,null,null,null,"et.",null,null,null,null,"ap.",null,null,null,null,null,"sectorul",null,null,null,null,null,null,null,null,null,null,null,null,"codul poştal"]
[]
["Număr de telefon",null,null,null,null,null,null,null,null,null,null,null,null,null,null,null,null,null,null,null,null,null,null,"Fax",null,null,null,null,null,null,null,null,null,null,null,null,null,null,"E-mail"]
[]
["Număr de înregistrare în registrul comerțului/Registrul asociațiilor și fundațiilor"]
[]
["CUI / CIF"]
[]
["Cod CAEN pentru activitatea principală"]
[]
["Cod CAEN pentru activitatea secundară pentru care se solicită înregistrarea în Registrul unic de identificare"]
[]
["Cod IBAN"]
[]
["deschis la Banca"]
[]
["Sucursala / Agenție"]
[]
["Prin reprezentant legal, doamna/domnul"]
[]
["cu CNP",null,null,null,null,null,null,null,null,null,null,null,null,null,null,"solicit înscrierea în Registrul unic de identificare -Agenţia de Plăţi şi Intervenţie pentru Agricultură."]
[]
["Am luat la cunoştinţă că orice modificare a informaţiilor de mai sus trebuie furnizată către APIA în termen de maximum 10 zile\nlucrătoare de la producerea acestora.\nDeclar pe propria răspundere că cele de mai sus sunt conforme cu realitatea.\nSunt de acord ca datele din cerere să fie introduse în baza de date a Sistemului Integrat de Administrare şi Control, procesate şi\nverificate în vederea înscrierii în Registrul unic de identificare şi transmise autorităţilor responsabile în vederea elaborării de studii\nstatistice şi de evaluări economice, în condiţiile Legii nr. 677-2001 pentru protecţia persoanelor cu privire la prelucrarea datelor cu\ncaracter personal şi libera circulaţie a acestor date, cu modificarile şi completările ulterioare."]
[]
["Reprezentant legal",null,null,null,null,null,null,null,null,null,null,null,null,null,null,null,null,null,null,null,null,null,null,null,null,null,null,null,null,null,null,null,null,null,null,null,null,null,null,null,null,null,null,"Data:"]
[]
["Numele şi prenumele"]
[]
["Semnătura "]

{"sheet":"Anexa 1","index":1,"n_rows":48,"n_cols":59,"rows_kept":48,"cut":false,"hidden":false,"merged":[[46,7,46,10],[46,11,46,48],[46,49,46,57],[46,58,46,67],[47,7,47,48],[47,49,47,67],[43,11,43,48],[43,49,43,57],[43,58,43,67],[44,7,44,10],[44,11,44,48],[44,49,44,57],[44,58,44,67],[45,7,45,10],[45,11,45,48],[45,49,45,57],[45,58,45,67],[40,7,40,10],[40,11,40,48],[40,49,40,57],[40,58,40,67],[41,7,41,10],[41,11,41,48],[41,49,41,57],[41,58,41,67],[42,11,42,48],[42,49,42,57],[42,58,42,67],[37,7,37,10],[37,11,37,48],[37,49,37,57],[37,58,37,67],[38,7,38,10],[38,11,38,48],[38,49,38,57],[38,58,38,67],[39,7,39,10],[39,11,39,48],[39,49,39,57],[39,58,39,67],[34,7,34,10],[34,11,34,48],[34,49,34,57],[34,58,34,67],[35,11,35,48],[35,49,35,57],[35,58,35,67],[36,11,36,48],[36,49,36,57],[36,58,36,67],[31,49,31,57],[31,58,31,67],[32,7,32,10],[32,11,32,48],[32,49,32,57],[32,58,32,67],[33,7,33,10],[33,11,33,48],[33,49,33,57],[33,58,33,67],[27,7,27,10],[27,11,27,48],[27,49,27,57],[27,58,27,67],[28,7,28,10],[28,11,28,48],[28,49,28,57],[28,58,28,67],[29,7,29,10],[29,11,29,48],[29,49,29,57],[29,58,29,67],[24,7,24,10],[24,11,24,48],[24,49,24,57],[24,58,24,67],[25,7,25,10],[25,11,25,48],[25,49,25,57],[25,58,25,67],[26,7,26,10],[26,11,26,48],[26,49,26,57],[26,58,26,67],[20,58,20,67],[21,11,21,48],[21,49,21,57],[21,58,21,67],[22,7,22,10],[22,11,22,48],[22,49,22,57],[22,58,22,67],[23,7,23,10],[23,11,23,48],[23,49,23,57],[23,58,23,67],[20,11,20,48],[20,49,20,57],[17,11,17,48],[17,49,17,57],[17,58,17,67],[18,11,18,48],[18,49,18,57],[18,58,18,67],[19,7,19,10],[19,11,19,48],[19,49,19,57],[19,58,19,67],[14,7,14,10],[14,11,14,48],[14,49,14,57],[14,58,14,67],[15,11,15,48],[15,49,15,57],[15,58,15,67],[16,11,16,48],[16,49,16,57],[16,58,16,67],[11,7,11,10],[11,11,11,48],[11,49,11,57],[11,58,11,67],[12,7,12,10],[12,11,12,48],[12,49,12,57],[12,58,12,67],[13,7,13,10],[13,11,13,48],[13,49,13,57],[13,58,13,67],[30,7,30,10],[30,11,30,48],[30,49,30,57],[30,58,30,67],[31,7,31,10],[31,11,31,48],[2,14,2,48],[2,49,3,67],[3,14,3,48],[4,14,4,67],[5,7,5,67],[7,7,7,67],[8,7,8,10],[8,11,8,48],[8,49,8,57],[8,58,8,67],[9,7,9,10],[9,11,9,48],[9,49,9,57],[9,58,9,67],[10,7,10,10],[10,11,10,48],[10,49,10,57],[10,58,10,67]]}
[]
[]
[null,null,null,null,null,null,null,null,null,null,null,null,null,null,null,null,null,null,null,null,null,null,null,null,null,null,null,null,null,null,null,null,null,null,null,null,null,null,null,null,null,null,null,null,null,null,null,null,null,"Anexa A1\n"]
[]
[null,null,null,null,null,null,null,null,null,null,null,null,null,null,"Deviz financiar- Capitolul 3 - Cheltuieli pentru proiectare şi asistenţa tehnică - EURO"]
[]
[]
[]
[null,null,null,null,null,null,null,"Nr.crt",null,null,null,"Specificaţie",null,null,null,null,null,null,null,null,null,null,null,null,null,null,null,null,null,null,null,null,null,null,null,null,null,null,null,null,null,null,null,null,null,null,null,null,null,"Valoare eligibilă",null,null,null,null,null,null,null,null,"Valoare\nneeligibilă"]
[null,null,null,null,null,null,null,"3.1",null,null,null,"Cheltuieli pentru studii - total din care:"]
[null,null,null,null,null,null,null,null,null,null,null,"3.1.1 Studii de teren: studii geotehnice, geologice, hidrologice, hidrogeotehnice,\nfotogrammetrice, topografica şi de stabilitate ale terenului pe care se amplasează obiectivul de investiţie "]
[null,null,null,null,null,null,null,null,null,null,null,"3.1.2 Raport privind impactul asupra mediului"]
[null,null,null,null,null,null,null,null,null,null,null,"3.1.3 Studii de specialitate necesare în funcţie de specificul investiţiei"]
[null,null,null,null,null,null,null,"3.2",null,null,null,"Documentaţii-suport şi cheltuieli pentru obţinerea de avize, acorduri şi\nautorizaţii"]
[null,null,null,null,null,null,null,null,null,null,null,"1. obţinerea/prelungirea valabilităţii ceritificatului de urbanism"]
[null,null,null,null,null,null,null,null,null,null,null,"2. obţinerea/prelungirea valabilităţii autorizaţiei de construire/desfiinţare"]
[null,null,null,null,null,null,null,null,null,null,null,"3. obţinerea avizelor şi acordurilor pentru racorduri şi branşamente la reţele publice\nde alimentare cu apă, canalizare, alimentare cu gaze, alimentare cu agent termic,\nenergie electrică, telefonie"]
[null,null,null,null,null,null,null,null,null,null,null,"4. obţinerea certificatului de nomenclatură stradală şi adresă"]
[null,null,null,null,null,null,null,null,null,null,null,"5. întocmirea documentaţiei, obţinerea numărului cadastral provizoriu şi\nînregistrarea terenului în cartea funciară"]
[null,null,null,null,null,null,null,null,null,null,null,"6. obţinerea actului administrativ al autorităţii competente pentru protecţia mediului"]
[null,null,null,null,null,null,null,null,null,null,null,"7. obţinerea avizului de protecţie civilă"]
[null,null,null,null,null,null,null,null,null,null,null,"8. avizul de specialitate în cazul obiectivelor de patrimoniu"]
[null,null,null,null,null,null,null,null,null,null,null,"9. alte avize, acorduri şi autorizaţii"]
[null,null,null,null,null,null,null,"3.3",null,null,null,"Cheltuieli pentru expertizarea tehnică a construcţiilor existente, a structurilor\nşi/sau, după caz, a proiectelor tehnice, inclusiv întocmirea de către expertul\ntehnic a raportului de expertiză tehnică"]
[null,null,null,null,null,null,null,"3.4",null,null,null,"Cheltuieli pentru certificarea performanţei energetice şi auditul energetic al clădirilor"]
[null,null,null,null,null,null,null,"3.5",null,null,null,"Cheltuieli pentru proiectare"]
[null,null,null,null,null,null,null,null,null,null,null,"3.5.1 Temă de proiectare"]
[null,null,null,null,null,null,null,null,null,null,null,"3.5.2 Studiu de prefezabilitate"]
[null,null,null,null,null,null,null,null,null,null,null,"3.5.3 Studiu de fezabilitate/documentaţie de avizare a lucrărilor de intervenţii şi deviz general"]
[null,null,null,null,null,null,null,null,null,null,null,"3.5.4 Documentaţiile tehnice necesare în vederea obţinerii avizelor/acordurilor/autorizaţiilor"]
[null,null,null,null,null,null,null,null,null,null,null,"3.5.5 Verificarea tehnică de calitate a proiectului tehnic şi a detaliilor de execuţie"]
[null,null,null,null,null,null,null,null,null,null,null,"3.5.6 Proiect tehnic şi detalii de execuţie"]
[null,null,null,null,null,null,null,"3.6",null,null,null,"Cheltuieli aferente organizării şi derulării procedurilor de achiziţii publice"]
[null,null,null,null,null,null,null,null,null,null,null,"1. Cheltuieli aferente întocmirii documentaţiei de atribuire şi multiplicării acesteia (exclusiv cele cumpărate de ofertanţi)"]
[null,null,null,null,null,null,null,null,null,null,null,"2. Cheltuieli cu onorariile, transportul, cazarea şi diurna membrilor desemnaţi în comisiile de evaluare"]
[null,null,null,null,null,null,null,null,null,null,null,"3. Anunţuri de intenţie, de participare şi de atribuire a contractelor, corespondenţă\nprin poştă, fax, poştă electronică în legătură cu procedurile de achiziţie publică"]
[null,null,null,null,null,null,null,null,null,null,null,"4. Cheltuieli aferente organizării şi derulării procedurilor de achiziţii publice"]
[null,null,null,null,null,null,null,"3.7",null,null,null,"Cheltuieli pentru consultanţă"]
[null,null,null,null,null,null,null,null,null,null,null,"3.7.1 Managementul de proiect pentru obiectivul de investiţii"]
[null,null,null,null,null,null,null,null,null,null,null,"3.7.2 Auditul financiar"]
[null,null,null,null,null,null,null,"3.8",null,null,null,"Cheltuieli pentru asistenţă tehnică"]
[null,null,null,null,null,null,null,null,null,null,null,"3.8.1. Asistenţă tehnică din partea proiectantului"]
[null,null,null,null,null,null,null,null,null,null,null,"    1.1. pe perioada de execuţie a lucrărilor"]
[null,null,null,null,null,null,null,null,null,null,null,"     1.2. pentru participarea proiectantului la fazele incluse în programul de control al\nlucrărilor de execuţie, avizat de către Inspectoratul de Stat în Construcţii"]
[null,null,null,null,null,null,null,null,null,null,null,"3.8.2 Dirigenţie de şantier, asigurată de personal tehnic de specialitate, autorizat"]
[null,null,null,null,null,null,null,null,null,null,null,"Total valoare fără TVA"]
[null,null,null,null,null,null,null,null,null,null,null,"Valoare TVA (aferentă cheltuielilor eligibile şi neeligibile)"]
[null,null,null,null,null,null,null,"TOTAL DEVIZ FINANCIAR 1 (inclusiv TVA)"]

{"sheet":"Anexa 2","index":2,"n_rows":144,"n_cols":66,"rows_kept":144,"cut":false,"hidden":false,"merged":[[142,10,142,32],[142,33,142,50],[142,51,142,57],[142,58,142,64],[142,65,142,70],[143,10,143,32],[143,33,143,50],[143,51,143,57],[143,58,143,64],[143,65,143,70],[139,10,139,12],[139,13,139,27],[139,28,139,32],[139,33,139,50],[139,51,139,57],[139,58,139,64],[139,65,139,70],[140,10,140,70],[141,10,141,32],[141,33,141,70],[137,10,137,12],[137,13,137,27],[137,28,137,32],[137,33,137,50],[137,51,137,57],[137,58,137,64],[137,65,137,70],[138,10,138,12],[138,13,138,27],[138,28,138,32],[138,33,138,50],[138,51,138,57],[138,58,138,64],[138,65,138,70],[135,10,135,12],[135,13,135,27],[135,28,135,32],[135,33,135,50],[135,51,135,57],[135,58,135,64],[135,65,135,70],[136,10,136,12],[136,13,136,27],[136,28,136,32],[136,33,136,50],[136,51,136,57],[136,58,136,64],[136,65,136,70],[133,10,133,12],[133,13,133,27],[133,28,133,32],[133,33,133,50],[133,51,133,57],[133,58,133,64],[133,65,133,70],[134,10,134,12],[134,13,134,27],[134,28,134,32],[134,33,134,50],[134,51,134,57],[134,58,134,64],[134,65,134,70],[126,10,126,51],[126,52,126,60],[126,61,126,70],[127,10,127,51],[127,52,127,70],[129,10,129,53],[131,10,131,70],[132,10,132,12],[132,13,132,27],[132,28,132,32],[132,33,132,50],[132,51,132,57],[132,58,132,64],[132,65,132,70],[123,10,123,13],[123,14,123,51],[123,52,123,60],[123,61,123,70],[124,10,124,13],[124,14,124,51],[124,52,124,60],[124,61,124,70],[125,10,125,51],[125,52,125,60],[125,61,125,70],[120,10,120,13],[120,14,120,51],[120,52,120,60],[120,61,120,70],[121,10,121,13],[121,14,121,51],[121,52,121,60],[121,61,121,70],[122,10,122,13],[122,14,122,51],[122,52,122,60],[122,61,122,70],[117,10,117,13],[117,14,117,51],[117,52,117,60],[117,61,117,70],[118,10,118,13],[118,14,118,51],[118,52,118,60],[118,61,118,70],[119,10,119,70],[114,10,114,13],[114,14,114,51],[114,52,114,60],[114,61,114,70],[115,10,115,13],[115,14,115,51],[115,52,115,60],[115,61,115,70],[116,10,116,70],[111,10,111,13],[111,14,111,51],[111,52,111,60],[111,61,111,70],[112,10,112,13],[112,14,112,51],[112,52,112,60],[112,61,112,70],[113,10,113,13],[113,14,113,51],[113,52,113,60],[113,61,113,70],[108,10,108,51],[108,52,108,60],[108,61,108,70],[109,10,109,51],[109,52,109,60],[109,61,109,70],[110,10,110,13],[110,14,110,51],[110,52,110,60],[110,61,110,70],[0,7,0,41],[101,17,101,51],[101,52,102,70],[102,17,102,51],[103,17,103,70],[104,10,104,70],[107,10,107,13],[107,14,107,51],[107,52,107,70]]}
[null,null,null,null,null,null,null,"MINISTERUL AGRICULTURII ŞI DEZVOLTĂRII RURALE"]
[]
[]
[]
[]
[]
[]
[]
[]
[]
[]
[]
[]
[]
[]
[]
[]
[]
[]
[]
[]
[]
[]
[]
[]
[]
[]
[]
[]
[]
[]
[]
[]
[]
[]
[]
[]
[]
[]
[]
[]
[]
[]
[]
[]
[]
[]
[]
[]
[]
[]
[]
[]
[]
[]
[]
[]
[]
[]
[]
[]
[]
[]
[]
[]
[]
[]
[]
[]
[]
[]
[]
[]
[]
[]
[]
[]
[]
[]
[]
[]
[]
[]
[]
[]
[]
[]
[]
[]
[]
[]
[]
[]
[]
[]
[]
[]
[]
[]
[]
[]
[null,null,null,null,null,null,null,null,null,null,null,null,null,null,null,null,null,null,null,null,null,null,null,null,null,null,null,null,null,null,null,null,null,null,null,null,null,null,null,null,null,null,null,null,null,null,null,null,null,null,null,null,"Anexa A2\n"]
[]
[null,null,null,null,null,null,null,null,null,null,null,null,null,null,null,null,null,"DEVIZ PE OBIECT *"]
[]
[]
[]
[null,null,null,null,null,null,null,null,null,null,"Nr. crt.",null,null,null,"Denumire",null,null,null,null,null,null,null,null,null,null,null,null,null,null,null,null,null,null,null,null,null,null,null,null,null,null,null,null,null,null,null,null,null,null,null,null,null,"Valoarea pe categorii de lucrări, fară TVA - EURO"]
[null,null,null,null,null,null,null,null,null,null,"Cap. 4 + Cheltuieli pentru investiţia de bază",null,null,null,null,null,null,null,null,null,null,null,null,null,null,null,null,null,null,null,null,null,null,null,null,null,null,null,null,null,null,null,null,null,null,null,null,null,null,null,null,null,"Valoare eligibilă",null,null,null,null,null,null,null,null,"Valoare\nneeligibilă"]
[null,null,null,null,null,null,null,null,null,null,"   I - LUCRĂRI DE CONSTRUCŢII ŞI INSTALAŢII"]
[null,null,null,null,null,null,null,null,null,null,"4.1",null,null,null,"Construcţii şi instalaţii"]
[null,null,null,null,null,null,null,null,null,null,null,null,null,null,"4.1.1 Terasamente, sistematizare pe verticală şi amenajări exterioare"]
[null,null,null,null,null,null,null,null,null,null,null,null,null,null,"4.1.2 Rezistenţă"]
[null,null,null,null,null,null,null,null,null,null,null,null,null,null,"4.1.3 Arhitectură"]
[null,null,null,null,null,null,null,null,null,null,null,null,null,null,"4.1.4 Instalaţii"]
[null,null,null,null,null,null,null,null,null,null,null,null,null,null,"TOTAL I ( fără TVA)"]
[null,null,null,null,null,null,null,null,null,null,"   II - MONTAJ"]
[null,null,null,null,null,null,null,null,null,null,"4.2",null,null,null,"Montaj utilaje şi echipamente tehnologice"]
[null,null,null,null,null,null,null,null,null,null,null,null,null,null,"TOTAL II ( fără TVA)"]
[null,null,null,null,null,null,null,null,null,null,"   III - PROCURARE"]
[null,null,null,null,null,null,null,null,null,null,"4.3",null,null,null,"Utilaje, echipamente tehnologice şi funcţionale care necesită montaj"]
[null,null,null,null,null,null,null,null,null,null,"4.4",null,null,null,"Utilaje, echipamente tehnologice şi funcţionale care nu necesită\nmontaj şi echipamente de transport"]
[null,null,null,null,null,null,null,null,null,null,"4.5",null,null,null,"Dotări"]
[null,null,null,null,null,null,null,null,null,null,"4.6",null,null,null,"Active necorporale"]
[null,null,null,null,null,null,null,null,null,null,null,null,null,null,"TOTAL III ( fără TVA)"]
[null,null,null,null,null,null,null,null,null,null,"TOTAL ( TOTAL I + TOTAL II +TOTAL III) fără TVA"]
[null,null,null,null,null,null,null,null,null,null,"TVA aferent cheltuielilor eligibile şi neeligibile"]
[null,null,null,null,null,null,null,null,null,null,"TOTAL DEVIZ PE OBIECT (inclusiv TVA)"]
[]
[]
[]
[null,null,null,null,null,null,null,null,null,null,"Situaţia achiziţiilor publice efectuate până la depunerea Cererii de finanţare cu respectarea condiţiilor de eligibilitate a cheltuielilor prevăzute în fişa Măsurii 7"]
[null,null,null,null,null,null,null,null,null,null,"Nr. crt.",null,null,"Obiectul contractului",null,null,null,null,null,null,null,null,null,null,null,null,null,null,"Valoarea reală                         (Lei)",null,null,null,null,"Procedura aplicată",null,null,null,null,null,null,null,null,null,null,null,null,null,null,null,null,null,"Data începerii procedurii (zz/ll/aaaa)",null,null,null,null,null,null,"Data finalizarii procedurii (zz/ll/aaaa)",null,null,null,null,null,null,"Stadiul procedurii"]
[null,null,null,null,null,null,null,null,null,null,1,null,null,"Servicii de consultanta"]
[null,null,null,null,null,null,null,null,null,null,2,null,null,"Elaborarea Studiului de Fezabilitate"]
[null,null,null,null,null,null,null,null,null,null,3]
[null,null,null,null,null,null,null,null,null,null,4]
[null,null,null,null,null,null,null,null,null,null,5]
[null,null,null,null,null,null,null,null,null,null,6]
[null,null,null,null,null,null,null,null,null,null,7]
[null,null,null,null,null,null,null,null,null,null,"Declar pe proprie raspundere ca informatiile din tabelul de mai sus sunt corecte si ca la atribuirea contractelor de servicii mentionate au fost respectate prevederile legislatiei nationale in vigoare privind procedura de achizitie publica"]
[]
[null,null,null,null,null,null,null,null,null,null,"Reprezentant legal, Nume/Prenume"]
[null,null,null,null,null,null,null,null,null,null,"Semnatura si ştampila"]

{"sheet":"Anexa 3","index":3,"n_rows":38,"n_cols":59,"rows_kept":38,"cut":false,"hidden":false,"merged":[[36,7,36,10],[36,11,36,48],[36,49,36,57],[36,58,36,67],[37,7,37,10],[37,11,37,48],[37,49,37,67],[31,7,31,10],[31,11,31,48],[31,49,31,57],[31,58,31,67],[32,7,32,10],[32,11,32,48],[32,49,32,57],[32,58,32,67],[33,7,33,10],[33,11,33,48],[33,49,33,57],[33,58,33,67],[35,7,35,10],[35,11,35,48],[35,49,35,57],[35,58,35,67],[17,7,17,10],[17,11,17,48],[17,49,17,57],[17,58,17,67],[18,7,18,10],[18,11,18,48],[18,49,18,57],[18,58,18,67],[19,7,19,48],[19,49,19,67],[14,7,14,10],[14,11,14,48],[14,49,14,57],[14,58,14,67],[15,7,15,10],[15,11,15,48],[15,49,15,57],[15,58,15,67],[16,7,16,10],[16,11,16,48],[16,49,16,57],[16,58,16,67],[10,49,10,57],[10,58,10,67],[11,7,11,10],[11,11,11,48],[11,49,11,57],[11,58,11,67],[12,7,12,10],[12,11,12,48],[12,49,12,57],[12,58,12,67],[1,14,1,48],[1,49,2,67],[2,14,2,48],[3,14,3,67],[4,7,4,67],[5,7,5,67],[7,7,7,10],[13,7,13,10],[13,11,13,48],[13,49,13,57],[13,58,13,67],[7,11,7,48],[7,49,7,57],[7,58,7,67],[8,7,8,10],[8,11,8,48],[8,49,8,57],[8,58,8,67],[9,7,9,10],[9,11,9,48],[9,49,9,57],[9,58,9,67],[10,7,10,10],[10,11,10,48],[20,7,20,10],[20,11,20,48],[20,49,20,57],[20,58,20,67],[21,7,21,67],[22,7,22,10],[22,11,22,48],[22,49,22,57],[22,58,22,67],[23,7,23,67],[24,7,24,10],[24,11,24,48],[27,7,27,10],[27,11,27,48],[27,49,27,57],[27,58,27,67],[28,7,28,10],[28,11,28,48],[28,49,28,57],[28,58,28,67],[24,49,24,57],[24,58,24,67],[25,7,25,10],[25,11,25,48],[25,49,25,57],[25,58,25,67],[26,7,26,10],[26,11,26,48],[26,49,26,57],[26,58,26,67],[29,7,29,10],[29,11,29,48],[29,49,29,57],[29,58,29,67],[30,7,30,10],[30,11,30,48],[30,49,30,57],[30,58,30,67],[34,7,34,10],[34,11,34,48],[34,49,34,57],[34,58,34,67]]}
[]
[null,null,null,null,null,null,null,null,null,null,null,null,null,null,null,null,null,null,null,null,null,null,null,null,null,null,null,null,null,null,null,null,null,null,null,null,null,null,null,null,null,null,null,null,null,null,null,null,null,"Anexa A3\n"]
[]
[]
[]
[null,null,null,null,null,null,null,"Deviz capitolul 2- Cheltuieli pentru asigurarea utilităţilor necesare obiectivului - EURO"]
[]
[null,null,null,null,null,null,null,"Nr.crt",null,null,null,"Specificaţie",null,null,null,null,null,null,null,null,null,null,null,null,null,null,null,null,null,null,null,null,null,null,null,null,null,null,null,null,null,null,null,null,null,null,null,null,null,"Valoare eligibilă",null,null,null,null,null,null,null,null,"Valoare\nneeligibilă"]
[null,null,null,null,null,null,null,1,null,null,null,"Alimentare cu apă"]
[null,null,null,null,null,null,null,2,null,null,null,"Canalizare"]
[null,null,null,null,null,null,null,3,null,null,null,"Alimentare cu gaze naturale"]
[null,null,null,null,null,null,null,4,null,null,null,"Alimentare cu agent termic"]
[null,null,null,null,null,null,null,5,null,null,null,"Alimentare cu energie electrică"]
[null,null,null,null,null,null,null,6,null,null,null,"Telecomunicaţii (telefonie, radio-tv,etc)"]
[null,null,null,null,null,null,null,7,null,null,null,"Drumuri de acces"]
[null,null,null,null,null,null,null,8,null,null,null,"Căi ferate industriale"]
[null,null,null,null,null,null,null,9,null,null,null,"Alte utilități"]
[null,null,null,null,null,null,null,null,null,null,null,"TOTAL DEVIZ CAPITOLUL 2"]
[null,null,null,null,null,null,null,null,null,null,null,"Valoare TVA aferentă cheltuielilor eligibile şi neeligibile"]
[null,null,null,null,null,null,null,"TOTAL DEVIZ CAPITOLUL 2 (inclusiv TVA)"]
[]
[null,null,null,null,null,null,null," Deviz capitolul 5 - Alte cheltuieli - EURO"]
[null,null,null,null,null,null,null,"Nr.crt",null,null,null,"Specificaţie",null,null,null,null,null,null,null,null,null,null,null,null,null,null,null,null,null,null,null,null,null,null,null,null,null,null,null,null,null,null,null,null,null,null,null,null,null,"Valoare eligibilă",null,null,null,null,null,null,null,null,"Valoare\nneeligibilă"]
[]
[null,null,null,null,null,null,null,"5.1 ",null,null,null,"Organizare de şantier"]
[null,null,null,null,null,null,null,null,null,null,null,"5.1.1 Lucrări de construcţii şi instalaţii aferente organizării de şantier"]
[null,null,null,null,null,null,null,null,null,null,null,"5.1.2 Cheltuieli conexe organizării de şantier"]
[null,null,null,null,null,null,null,"5.2",null,null,null,"Comisioane, cote, taxe, costul creditului"]
[null,null,null,null,null,null,null,null,null,null,null,"5.2.1. Comisioanele şi dobânzile aferente creditului băncii finanţatoare",null,null,null,null,null,null,null,null,null,null,null,null,null,null,null,null,null,null,null,null,null,null,null,null,null,null,null,null,null,null,null,null,null,null,null,null,null,1]
[null,null,null,null,null,null,null,null,null,null,null,"5.2.2. Cota aferentă ISC pentru controlul calităţii lucrărilor de\nconstrucţii"]
[null,null,null,null,null,null,null,null,null,null,null,"5.2.3. Cota aferentă ISC pentru controlul statului în amenajarea teritoriului, urbanism şi pentru autorizarea lucrărilor de construcţii"]
[null,null,null,null,null,null,null,null,null,null,null,"5.2.4. Cota aferentă Casei Sociale a Constructorilor - CSC"]
[null,null,null,null,null,null,null,null,null,null,null,"5.2.5. Taxe pentru acorduri, avize conforme şi autorizaţia de construire/desfiinţare"]
[null,null,null,null,null,null,null,"5.3",null,null,null," Cheltuieli diverse si neprevazute"]
[null,null,null,null,null,null,null,"5.3",null,null,null,"Cheltuieli pentru informare și publicitate"]
[null,null,null,null,null,null,null,null,null,null,null,"TOTAL DEVIZ CAPITOLUL 5"]
[null,null,null,null,null,null,null,null,null,null,null,"VALOARE TVA aferentă cheltuielilor eligibile şi neeligibile"]
[null,null,null,null,null,null,null,null,null,null,null,"TOTAL DEVIZ CAPITOLUL 5 ( inclusiv TVA)"]